BODY,BODY NAME,DATE,TRANSACTION NUMBER,THEIR REF,CATEGORY,AMOUNT,SUPPLIER NAME,SUPPLIER CODE,EXPENSE AREA,EXPENSE TYPE,EXPENSE CODE
http://statistics.data.gov.uk/id/local-authority/12UE,Huntingdonshire District Council,17/12/2015,179592,1289,5,1700,Wood Green Animal Shelters,CR019139,Animal Welfare,Contribution (Paid Out),810
http://statistics.data.gov.uk/id/local-authority/12UE,Huntingdonshire District Council,17/12/2015,179593,1290,5,1500,Wood Green Animal Shelters,CR019139,Animal Welfare,Grants (Paid Out),800
http://statistics.data.gov.uk/id/local-authority/12UE,Huntingdonshire District Council,17/12/2015,179934,1216786056,5,19.2,Orange Airtime,CR455799,Animal Welfare,Telephone &Mobile Phonecharges,240
http://statistics.data.gov.uk/id/local-authority/12UE,Huntingdonshire District Council,10/12/2015,179748,GFL1756HDC,5,606,G Ferrara Ltd,CR478949,Bus Shelters,Building Cleaning,440
http://statistics.data.gov.uk/id/local-authority/12UE,Huntingdonshire District Council,03/12/2015,590244,905,1,301.59,St Ives Town Council,CR000701,Bus Stations,Electricity,420
http://statistics.data.gov.uk/id/local-authority/12UE,Huntingdonshire District Council,17/12/2015,590981,926,1,271.38,St Ives Town Council,CR000701,Bus Stations,Building Cleaning,440
http://statistics.data.gov.uk/id/local-authority/12UE,Huntingdonshire District Council,03/12/2015,179064,55466,5,1140.78,Beebys Limited,CR415822,Bus Stations,Building Cleaning,440
http://statistics.data.gov.uk/id/local-authority/12UE,Huntingdonshire District Council,10/12/2015,180314,4706,5,2880,Pedestrian Market Research Services Ltd,CR423106,Business & Enterprise Support,Consultation And Surveys,770
http://statistics.data.gov.uk/id/local-authority/12UE,Huntingdonshire District Council,10/12/2015,178225,10350,5,10000,Ytko,CR455448,Business & Enterprise Support,Training,130
http://statistics.data.gov.uk/id/local-authority/12UE,Huntingdonshire District Council,17/12/2015,179934,1216786056,5,19.2,Orange Airtime,CR455799,Business & Enterprise Support,Telephone &Mobile Phonecharges,240
http://statistics.data.gov.uk/id/local-authority/12UE,Huntingdonshire District Council,23/12/2015,180691,4151,5,1108.8,Access Hire And Hydraulics,CR422526,C C T V,Equipment Maintenance,511
http://statistics.data.gov.uk/id/local-authority/12UE,Huntingdonshire District Council,03/12/2015,179459,53933,5,540,Melsecure International,CR422888,C C T V,Equipment Maintenance,511
http://statistics.data.gov.uk/id/local-authority/12UE,Huntingdonshire District Council,17/12/2015,179934,1216786056,5,55.2,Orange Airtime,CR455799,C C T V,Telephone &Mobile Phonecharges,240
http://statistics.data.gov.uk/id/local-authority/12UE,Huntingdonshire District Council,10/12/2015,179489,923469-059A,5,631.29,Virgin Media Business/Cpsn,CR455148,C C T V,I T Line Rental,248
http://statistics.data.gov.uk/id/local-authority/12UE,Huntingdonshire District Council,03/12/2015,180487,923469-060A,5,631.29,Virgin Media Business/Cpsn,CR455148,C C T V,I T Line Rental,248
http://statistics.data.gov.uk/id/local-authority/12UE,Huntingdonshire District Council,03/12/2015,179129,11173,5,325.2,Lightning Recruitment,CR028184,Call Centre,Hired Staff,100
http://statistics.data.gov.uk/id/local-authority/12UE,Huntingdonshire District Council,10/12/2015,179822,11215,5,325.2,Lightning Recruitment,CR028184,Call Centre,Hired Staff,100
http://statistics.data.gov.uk/id/local-authority/12UE,Huntingdonshire District Council,17/12/2015,180258,11255,5,325.2,Lightning Recruitment,CR028184,Call Centre,Hired Staff,100
http://statistics.data.gov.uk/id/local-authority/12UE,Huntingdonshire District Council,23/12/2015,180338,11295,5,325.2,Lightning Recruitment,CR028184,Call Centre,Hired Staff,100
http://statistics.data.gov.uk/id/local-authority/12UE,Huntingdonshire District Council,17/12/2015,179934,1216786056,5,2.4,Orange Airtime,CR455799,Call Centre,Telephone &Mobile Phonecharges,240
http://statistics.data.gov.uk/id/local-authority/12UE,Huntingdonshire District Council,03/12/2015,180335,HUNTDC019,5,2040,Optevia Uk Ltd,CR455228,Call Centre,Training,130
http://statistics.data.gov.uk/id/local-authority/12UE,Huntingdonshire District Council,30/12/2015,181963,HUNTDC020,5,2040,Optevia Uk Ltd,CR455228,Call Centre,Training,130
http://statistics.data.gov.uk/id/local-authority/12UE,Huntingdonshire District Council,03/12/2015,180301,3110015,5,612.59,Venn Group Recruitment,CR415403,Central Services M Us,Hired Staff,100
http://statistics.data.gov.uk/id/local-authority/12UE,Huntingdonshire District Council,17/12/2015,179934,1216786056,5,12,Orange Airtime,CR455799,Central Services M Us,Telephone &Mobile Phonecharges,240
http://statistics.data.gov.uk/id/local-authority/12UE,Huntingdonshire District Council,17/12/2015,589892,781013,6,1800,Breckland Council,CR416546,Chief Executive & Comt,Training,130
http://statistics.data.gov.uk/id/local-authority/12UE,Huntingdonshire District Council,03/12/2015,180481,5173945,5,310,Cipfa Business Limited,CR480088,Chief Executive & Comt,Professional Subscriptions,755
http://statistics.data.gov.uk/id/local-authority/12UE,Huntingdonshire District Council,03/12/2015,179480,9173208,6,8316,East Of England Lga,CR422620,Chief Executive & Comt,Consultants,711
http://statistics.data.gov.uk/id/local-authority/12UE,Huntingdonshire District Council,03/12/2015,179479,9173302,6,8448,East Of England Lga,CR422620,Chief Executive & Comt,Consultants,711
http://statistics.data.gov.uk/id/local-authority/12UE,Huntingdonshire District Council,17/12/2015,179934,1216786056,5,215.76,Orange Airtime,CR455799,Chief Executive & Comt,Telephone &Mobile Phonecharges,240
http://statistics.data.gov.uk/id/local-authority/12UE,Huntingdonshire District Council,17/12/2015,180538,01/15/HDC008,5,9867,Hester Management Services Ltd,CR422903,Chief Executive & Comt,Consultants,711
http://statistics.data.gov.uk/id/local-authority/12UE,Huntingdonshire District Council,23/12/2015,181276,GB10100095731,5,21411.6,Ernst & Young,CR411950,Chief Executive & Comt,Audit Fees,701
http://statistics.data.gov.uk/id/local-authority/12UE,Huntingdonshire District Council,23/12/2015,181765,C-0002225048,5,4692.95,Computershare Vouchers Ltd,CR412205,Child Care Vouchers - Payroll,Deductions Paid To Third Party,26
http://statistics.data.gov.uk/id/local-authority/12UE,Huntingdonshire District Council,17/12/2015,181167,207,5,308.96,Dms Home Improvements & Electrical,CR479202,Commercial Properties,Building Mtce,303
http://statistics.data.gov.uk/id/local-authority/12UE,Huntingdonshire District Council,10/12/2015,179804,5363,5,920.8,Hunts Forum Of Voluntary Organisations,CR030582,Commercial Properties,Building Mtce,303
http://statistics.data.gov.uk/id/local-authority/12UE,Huntingdonshire District Council,17/12/2015,179934,1216786056,5,28.8,Orange Airtime,CR455799,Community Services M Us,Telephone &Mobile Phonecharges,240
http://statistics.data.gov.uk/id/local-authority/12UE,Huntingdonshire District Council,23/12/2015,181587,580,5,2050.63,Hact,CR455657,Concessionary Fares,Contribution (Paid Out),810
http://statistics.data.gov.uk/id/local-authority/12UE,Huntingdonshire District Council,03/12/2015,180355,605,5,2021.25,Hact,CR455657,Concessionary Fares,Contribution (Paid Out),810
http://statistics.data.gov.uk/id/local-authority/12UE,Huntingdonshire District Council,23/12/2015,180399,2790,5,4858.56,Newlyn Plc,CR409114,Council Tax,Bailiffs,703
http://statistics.data.gov.uk/id/local-authority/12UE,Huntingdonshire District Council,23/12/2015,180696,640180,5,280.8,Callcredit Ltd,CR455548,Council Tax,Enquiries,723
http://statistics.data.gov.uk/id/local-authority/12UE,Huntingdonshire District Council,17/12/2015,179934,1216786056,5,4.8,Orange Airtime,CR455799,Council Tax,Telephone &Mobile Phonecharges,240
http://statistics.data.gov.uk/id/local-authority/12UE,Huntingdonshire District Council,03/12/2015,179172,16/2016,5,299.94,Apt Ltd,CR456018,Council Tax,Software,206
http://statistics.data.gov.uk/id/local-authority/12UE,Huntingdonshire District Council,17/12/2015,179596,B5102015/211201,5,4179.45,Jacobs,CR422350,Council Tax,Bailiffs,703
http://statistics.data.gov.uk/id/local-authority/12UE,Huntingdonshire District Council,03/12/2015,179118,IN16PS15007003,5,707.24,Whistl,CR479965,Council Tax,Postage,231
http://statistics.data.gov.uk/id/local-authority/12UE,Huntingdonshire District Council,17/12/2015,179894,IN16PS15007276,5,2795.24,Whistl,CR479965,Council Tax,Postage,231
http://statistics.data.gov.uk/id/local-authority/12UE,Huntingdonshire District Council,23/12/2015,180411,IN16PS15007447,5,650.34,Whistl,CR479965,Council Tax,Postage,231
http://statistics.data.gov.uk/id/local-authority/12UE,Huntingdonshire District Council,23/12/2015,181121,13288,5,16.74,Jade Security Services Ltd,CR422256,Countryside,Cash Collection,702
http://statistics.data.gov.uk/id/local-authority/12UE,Huntingdonshire District Council,03/12/2015,180033,62052,5,1077.6,Woodberry Of Leamington Spa,CR479458,Countryside,Equipment,500
http://statistics.data.gov.uk/id/local-authority/12UE,Huntingdonshire District Council,23/12/2015,180027,76428,5,640.32,Crowders Nurseries,CR411361,Countryside,Trees/Shrubs,555
http://statistics.data.gov.uk/id/local-authority/12UE,Huntingdonshire District Council,10/12/2015,180970,142049,5,365.35,Huntingdon Timber Supplies,CR482513,Countryside,Materials,550
http://statistics.data.gov.uk/id/local-authority/12UE,Huntingdonshire District Council,10/12/2015,179881,142136,5,502.59,Huntingdon Timber Supplies,CR482513,Countryside,Materials,550
http://statistics.data.gov.uk/id/local-authority/12UE,Huntingdonshire District Council,23/12/2015,180969,142911,5,1584.1,Huntingdon Timber Supplies,CR482513,Countryside,Materials,550
http://statistics.data.gov.uk/id/local-authority/12UE,Huntingdonshire District Council,17/12/2015,181296,161080,5,308.82,Arthur Ibbett Ltd,CR000430,Countryside,Materials,550
http://statistics.data.gov.uk/id/local-authority/12UE,Huntingdonshire District Council,10/12/2015,180025,163977,5,307.72,Arthur Ibbett Ltd,CR000430,Countryside,Materials,550
http://statistics.data.gov.uk/id/local-authority/12UE,Huntingdonshire District Council,23/12/2015,181293,165126,5,113.91,Arthur Ibbett Ltd,CR000430,Countryside,Equipment Maintenance,511
http://statistics.data.gov.uk/id/local-authority/12UE,Huntingdonshire District Council,23/12/2015,181293,165126,5,236.87,Arthur Ibbett Ltd,CR000430,Countryside,Materials,550
http://statistics.data.gov.uk/id/local-authority/12UE,Huntingdonshire District Council,03/12/2015,180092,41226290,5,638.98,Swalec,CR407130,Countryside,Electricity,420
http://statistics.data.gov.uk/id/local-authority/12UE,Huntingdonshire District Council,03/12/2015,180083,311226373,5,345.92,Swalec,CR407130,Countryside,Electricity,420
http://statistics.data.gov.uk/id/local-authority/12UE,Huntingdonshire District Council,17/12/2015,179934,1216786056,5,40.8,Orange Airtime,CR455799,Countryside,Telephone &Mobile Phonecharges,240
http://statistics.data.gov.uk/id/local-authority/12UE,Huntingdonshire District Council,03/12/2015,180023,4000003154,5,342,1st Choice Recruitment,CR416849,Countryside,Hired Staff,100
http://statistics.data.gov.uk/id/local-authority/12UE,Huntingdonshire District Council,10/12/2015,180024,4000003176,5,342,1st Choice Recruitment,CR416849,Countryside,Hired Staff,100
http://statistics.data.gov.uk/id/local-authority/12UE,Huntingdonshire District Council,17/12/2015,180790,4000003202,5,273.6,1st Choice Recruitment,CR416849,Countryside,Hired Staff,100
http://statistics.data.gov.uk/id/local-authority/12UE,Huntingdonshire District Council,23/12/2015,180792,4000003222,5,342,1st Choice Recruitment,CR416849,Countryside,Hired Staff,100
http://statistics.data.gov.uk/id/local-authority/12UE,Huntingdonshire District Council,23/12/2015,181763,A6557,5,942,Ternex Ltd,CR423132,Countryside,Materials,550
http://statistics.data.gov.uk/id/local-authority/12UE,Huntingdonshire District Council,17/12/2015,181341,S04556720,5,203.81,Shell Uk Ltd,CR028192,Countryside,Petrol,614
http://statistics.data.gov.uk/id/local-authority/12UE,Huntingdonshire District Council,17/12/2015,180855,WC-1045708,5,582.6,J Parker Dutch Bulbs W/S Ltd,CR487281,Countryside,Materials For Resale,570
http://statistics.data.gov.uk/id/local-authority/12UE,Huntingdonshire District Council,03/12/2015,180337,2030,5,2698.6,White Commercial Surveyors Ltd,CR412242,Customer Service Centres,Rent,410
http://statistics.data.gov.uk/id/local-authority/12UE,Huntingdonshire District Council,03/12/2015,179127,11172,5,601.62,Lightning Recruitment,CR028184,Customer Service Centres,Hired Staff,100
http://statistics.data.gov.uk/id/local-authority/12UE,Huntingdonshire District Council,03/12/2015,179124,11177,5,385.18,Lightning Recruitment,CR028184,Customer Service Centres,Hired Staff,100
http://statistics.data.gov.uk/id/local-authority/12UE,Huntingdonshire District Council,10/12/2015,179823,11214,5,601.62,Lightning Recruitment,CR028184,Customer Service Centres,Hired Staff,100
http://statistics.data.gov.uk/id/local-authority/12UE,Huntingdonshire District Council,10/12/2015,179827,11218,5,385.18,Lightning Recruitment,CR028184,Customer Service Centres,Hired Staff,100
http://statistics.data.gov.uk/id/local-authority/12UE,Huntingdonshire District Council,23/12/2015,180341,11297,5,647.8,Lightning Recruitment,CR028184,Customer Service Centres,Hired Staff,100
http://statistics.data.gov.uk/id/local-authority/12UE,Huntingdonshire District Council,17/12/2015,179934,1216786056,5,12,Orange Airtime,CR455799,Customer Service Centres,Telephone &Mobile Phonecharges,240
http://statistics.data.gov.uk/id/local-authority/12UE,Huntingdonshire District Council,17/12/2015,180311,11254A,5,471.54,Lightning Recruitment,CR028184,Customer Service Centres,Hired Staff,100
http://statistics.data.gov.uk/id/local-authority/12UE,Huntingdonshire District Council,17/12/2015,180261,11257B,5,507.73,Lightning Recruitment,CR028184,Customer Service Centres,Hired Staff,100
http://statistics.data.gov.uk/id/local-authority/12UE,Huntingdonshire District Council,23/12/2015,180340,11294B,5,585.36,Lightning Recruitment,CR028184,Customer Service Centres,Hired Staff,100
http://statistics.data.gov.uk/id/local-authority/12UE,Huntingdonshire District Council,03/12/2015,179494,742878104/1115,5,0.23,Virgin Media Business,CR033120,Customer Service Centres,Telephone &Mobile Phonecharges,240
http://statistics.data.gov.uk/id/local-authority/12UE,Huntingdonshire District Council,17/12/2015,181176,39278,5,347.96,Plot It,CR455069,Dc Application Processing,Materials,550
http://statistics.data.gov.uk/id/local-authority/12UE,Huntingdonshire District Council,17/12/2015,181176,39278,5,172.92,Plot It,CR455069,Dc Application Processing,Paper,562
http://statistics.data.gov.uk/id/local-authority/12UE,Huntingdonshire District Council,17/12/2015,180308,85246,5,1416,Rics,CR022422,Dc Application Processing,Corporate Subscriptions,754
http://statistics.data.gov.uk/id/local-authority/12UE,Huntingdonshire District Council,10/12/2015,179488,2460602,5,1243.2,Matchtech Group Uk Ltd,CR423084,Dc Application Processing,Consultants,711
http://statistics.data.gov.uk/id/local-authority/12UE,Huntingdonshire District Council,10/12/2015,179965,2465595,5,1243.2,Matchtech Group Uk Ltd,CR423084,Dc Application Processing,Consultants,711
http://statistics.data.gov.uk/id/local-authority/12UE,Huntingdonshire District Council,23/12/2015,180313,2470041,5,1092,Matchtech Group Uk Ltd,CR423084,Dc Application Processing,Consultants,711
http://statistics.data.gov.uk/id/local-authority/12UE,Huntingdonshire District Council,23/12/2015,181147,2475293,5,1243.2,Matchtech Group Uk Ltd,CR423084,Dc Application Processing,Consultants,711
http://statistics.data.gov.uk/id/local-authority/12UE,Huntingdonshire District Council,03/12/2015,179130,11174,5,651.96,Lightning Recruitment,CR028184,Development Team,Hired Staff,100
http://statistics.data.gov.uk/id/local-authority/12UE,Huntingdonshire District Council,10/12/2015,179820,11216,5,651.96,Lightning Recruitment,CR028184,Development Team,Hired Staff,100
http://statistics.data.gov.uk/id/local-authority/12UE,Huntingdonshire District Council,17/12/2015,179934,1216786056,5,2.4,Orange Airtime,CR455799,Development Team,Telephone &Mobile Phonecharges,240
http://statistics.data.gov.uk/id/local-authority/12UE,Huntingdonshire District Council,23/12/2015,181153,8598,5,1075.8,West Country Group,CR400581,Document Centre,Envelopes,224
http://statistics.data.gov.uk/id/local-authority/12UE,Huntingdonshire District Council,23/12/2015,181153,8598,5,645.48,West Country Group,CR400581,Document Centre,Envelopes,224
http://statistics.data.gov.uk/id/local-authority/12UE,Huntingdonshire District Council,23/12/2015,180697,38689,5,456,Clanpress King'S Lynn Ltd,CR413516,Document Centre,Equipment Maintenance,511
http://statistics.data.gov.uk/id/local-authority/12UE,Huntingdonshire District Council,10/12/2015,180333,341126,5,947.04,Surrey Envelopes,CR482428,Document Centre,Envelopes,224
http://statistics.data.gov.uk/id/local-authority/12UE,Huntingdonshire District Council,10/12/2015,179796,5335619,5,556.8,Antalis Ltd,CR479468,Document Centre,Paper,562
http://statistics.data.gov.uk/id/local-authority/12UE,Huntingdonshire District Council,10/12/2015,179796,5335619,5,101.16,Antalis Ltd,CR479468,Document Centre,Paper,562
http://statistics.data.gov.uk/id/local-authority/12UE,Huntingdonshire District Council,10/12/2015,179795,5340194,5,134.76,Antalis Ltd,CR479468,Document Centre,Paper,562
http://statistics.data.gov.uk/id/local-authority/12UE,Huntingdonshire District Council,10/12/2015,179795,5340194,5,125.4,Antalis Ltd,CR479468,Document Centre,Paper,562
http://statistics.data.gov.uk/id/local-authority/12UE,Huntingdonshire District Council,17/12/2015,180328,5361926,5,55.52,Antalis Ltd,CR479468,Document Centre,Paper,562
http://statistics.data.gov.uk/id/local-authority/12UE,Huntingdonshire District Council,17/12/2015,180328,5361926,5,57.86,Antalis Ltd,CR479468,Document Centre,Paper,562
http://statistics.data.gov.uk/id/local-authority/12UE,Huntingdonshire District Council,17/12/2015,180328,5361926,5,37.38,Antalis Ltd,CR479468,Document Centre,Paper,562
http://statistics.data.gov.uk/id/local-authority/12UE,Huntingdonshire District Council,17/12/2015,180328,5361926,5,209.74,Antalis Ltd,CR479468,Document Centre,Paper,562
http://statistics.data.gov.uk/id/local-authority/12UE,Huntingdonshire District Council,17/12/2015,180328,5361926,5,190.8,Antalis Ltd,CR479468,Document Centre,Paper,562
http://statistics.data.gov.uk/id/local-authority/12UE,Huntingdonshire District Council,17/12/2015,180334,5366780,5,86.94,Antalis Ltd,CR479468,Document Centre,Paper,562
http://statistics.data.gov.uk/id/local-authority/12UE,Huntingdonshire District Council,17/12/2015,180334,5366780,5,168.46,Antalis Ltd,CR479468,Document Centre,Paper,562
http://statistics.data.gov.uk/id/local-authority/12UE,Huntingdonshire District Council,17/12/2015,180334,5366780,5,48.24,Antalis Ltd,CR479468,Document Centre,Paper,562
http://statistics.data.gov.uk/id/local-authority/12UE,Huntingdonshire District Council,23/12/2015,180324,5380198,5,164.45,Antalis Ltd,CR479468,Document Centre,Paper,562
http://statistics.data.gov.uk/id/local-authority/12UE,Huntingdonshire District Council,23/12/2015,180324,5380198,5,120,Antalis Ltd,CR479468,Document Centre,Paper,562
http://statistics.data.gov.uk/id/local-authority/12UE,Huntingdonshire District Council,23/12/2015,180324,5380198,5,204.78,Antalis Ltd,CR479468,Document Centre,Paper,562
http://statistics.data.gov.uk/id/local-authority/12UE,Huntingdonshire District Council,17/12/2015,179511,966867961,5,364.64,Office Depot Uk Ltd,CR455229,Document Centre,Equipment Maintenance,511
http://statistics.data.gov.uk/id/local-authority/12UE,Huntingdonshire District Council,17/12/2015,179801,1121371952,5,2561.1,Konica Minolta,CR478866,Document Centre,Equipment Maintenance,511
http://statistics.data.gov.uk/id/local-authority/12UE,Huntingdonshire District Council,17/12/2015,179934,1216786056,5,4.8,Orange Airtime,CR455799,Document Centre,Telephone &Mobile Phonecharges,240
http://statistics.data.gov.uk/id/local-authority/12UE,Huntingdonshire District Council,17/12/2015,178848,9050873145,5,555.42,Royal Mail,CR027083,Document Centre,Postage,231
http://statistics.data.gov.uk/id/local-authority/12UE,Huntingdonshire District Council,17/12/2015,178838,9050876085,5,449.54,Royal Mail,CR027083,Document Centre,Postage,231
http://statistics.data.gov.uk/id/local-authority/12UE,Huntingdonshire District Council,17/12/2015,179507,9050959236,5,1085.95,Royal Mail,CR027083,Document Centre,Postage,231
http://statistics.data.gov.uk/id/local-authority/12UE,Huntingdonshire District Council,17/12/2015,180413,9051056634,5,1117.8,Royal Mail,CR027083,Document Centre,Postage,231
http://statistics.data.gov.uk/id/local-authority/12UE,Huntingdonshire District Council,23/12/2015,181160,9051093672,5,355.01,Royal Mail,CR027083,Document Centre,Postage,231
http://statistics.data.gov.uk/id/local-authority/12UE,Huntingdonshire District Council,23/12/2015,181161,9051104587,5,493.13,Royal Mail,CR027083,Document Centre,Postage,231
http://statistics.data.gov.uk/id/local-authority/12UE,Huntingdonshire District Council,03/12/2015,179118,IN16PS15007003,5,1086.47,Whistl,CR479965,Document Centre,Postage,231
http://statistics.data.gov.uk/id/local-authority/12UE,Huntingdonshire District Council,10/12/2015,179895,IN16PS15007160,5,1222.66,Whistl,CR479965,Document Centre,Postage,231
http://statistics.data.gov.uk/id/local-authority/12UE,Huntingdonshire District Council,17/12/2015,179894,IN16PS15007276,5,934.51,Whistl,CR479965,Document Centre,Postage,231
http://statistics.data.gov.uk/id/local-authority/12UE,Huntingdonshire District Council,23/12/2015,180411,IN16PS15007447,5,1429.98,Whistl,CR479965,Document Centre,Postage,231
http://statistics.data.gov.uk/id/local-authority/12UE,Huntingdonshire District Council,23/12/2015,180861,15927,5,608.36,Pristine Condition,CR482653,Domestic Refuse,Training,130
http://statistics.data.gov.uk/id/local-authority/12UE,Huntingdonshire District Council,23/12/2015,179962,38672,5,27216,Clanpress King'S Lynn Ltd,CR413516,Domestic Refuse,Advertising/Promoting Services,255
http://statistics.data.gov.uk/id/local-authority/12UE,Huntingdonshire District Council,10/12/2015,179875,52809,5,565.7,Garwood Europe Ltd,CR415210,Domestic Refuse,Vehicle Parts & Fittings,625
http://statistics.data.gov.uk/id/local-authority/12UE,Huntingdonshire District Council,17/12/2015,179874,52816,5,306,Garwood Europe Ltd,CR415210,Domestic Refuse,Vehicle Maintenance External,619
http://statistics.data.gov.uk/id/local-authority/12UE,Huntingdonshire District Council,10/12/2015,180910,81622,5,4090.54,Bandvulc Truck Tyres,CR406810,Domestic Refuse,Tyres,630
http://statistics.data.gov.uk/id/local-authority/12UE,Huntingdonshire District Council,30/12/2015,181994,82799,5,2540.01,Bandvulc Truck Tyres,CR406810,Domestic Refuse,Tyres,630
http://statistics.data.gov.uk/id/local-authority/12UE,Huntingdonshire District Council,03/12/2015,180359,176773,5,294,Barton Petroleum,CR409205,Domestic Refuse,Vehicle Oil & Lubricants,626
http://statistics.data.gov.uk/id/local-authority/12UE,Huntingdonshire District Council,23/12/2015,180941,273341,5,3995.34,Dennis Eagle Ltd,CR000200,Domestic Refuse,Vehicle Parts & Fittings,625
http://statistics.data.gov.uk/id/local-authority/12UE,Huntingdonshire District Council,03/12/2015,180372,468040,5,4263.97,Staffline Group,CR416827,Domestic Refuse,Hired Staff,100
http://statistics.data.gov.uk/id/local-authority/12UE,Huntingdonshire District Council,03/12/2015,180376,468042,5,3979.93,Staffline Group,CR416827,Domestic Refuse,Hired Staff,100
http://statistics.data.gov.uk/id/local-authority/12UE,Huntingdonshire District Council,03/12/2015,180364,469180,5,3880.18,Staffline Group,CR416827,Domestic Refuse,Hired Staff,100
http://statistics.data.gov.uk/id/local-authority/12UE,Huntingdonshire District Council,03/12/2015,180371,469182,5,2228.09,Staffline Group,CR416827,Domestic Refuse,Hired Staff,100
http://statistics.data.gov.uk/id/local-authority/12UE,Huntingdonshire District Council,03/12/2015,180390,472283,5,4457.29,Staffline Group,CR416827,Domestic Refuse,Hired Staff,100
http://statistics.data.gov.uk/id/local-authority/12UE,Huntingdonshire District Council,03/12/2015,180395,472285,5,3419.05,Staffline Group,CR416827,Domestic Refuse,Hired Staff,100
http://statistics.data.gov.uk/id/local-authority/12UE,Huntingdonshire District Council,03/12/2015,180381,473754,5,4208.89,Staffline Group,CR416827,Domestic Refuse,Hired Staff,100
http://statistics.data.gov.uk/id/local-authority/12UE,Huntingdonshire District Council,03/12/2015,180385,473756,5,3467,Staffline Group,CR416827,Domestic Refuse,Hired Staff,100
http://statistics.data.gov.uk/id/local-authority/12UE,Huntingdonshire District Council,03/12/2015,180400,475203,5,3986.35,Staffline Group,CR416827,Domestic Refuse,Hired Staff,100
http://statistics.data.gov.uk/id/local-authority/12UE,Huntingdonshire District Council,03/12/2015,180404,475205,5,2794.58,Staffline Group,CR416827,Domestic Refuse,Hired Staff,100
http://statistics.data.gov.uk/id/local-authority/12UE,Huntingdonshire District Council,10/12/2015,180407,476516,5,3720.95,Staffline Group,CR416827,Domestic Refuse,Hired Staff,100
http://statistics.data.gov.uk/id/local-authority/12UE,Huntingdonshire District Council,10/12/2015,180417,476517,5,2310.72,Staffline Group,CR416827,Domestic Refuse,Hired Staff,100
http://statistics.data.gov.uk/id/local-authority/12UE,Huntingdonshire District Council,23/12/2015,181760,477896,5,4141.13,Staffline Group,CR416827,Domestic Refuse,Hired Staff,100
http://statistics.data.gov.uk/id/local-authority/12UE,Huntingdonshire District Council,23/12/2015,181756,477897,5,2298.61,Staffline Group,CR416827,Domestic Refuse,Hired Staff,100
http://statistics.data.gov.uk/id/local-authority/12UE,Huntingdonshire District Council,23/12/2015,181758,480031,5,3766.21,Staffline Group,CR416827,Domestic Refuse,Hired Staff,100
http://statistics.data.gov.uk/id/local-authority/12UE,Huntingdonshire District Council,17/12/2015,180802,2616781,5,378.51,A C Commercials,CR000141,Domestic Refuse,Vehicle Parts & Fittings,625
http://statistics.data.gov.uk/id/local-authority/12UE,Huntingdonshire District Council,30/12/2015,181998,10914245,5,410.45,Dennis Eagle Ltd,CR000200,Domestic Refuse,Tyres,630
http://statistics.data.gov.uk/id/local-authority/12UE,Huntingdonshire District Council,03/12/2015,179910,96318761,5,899.01,Terberg Matec Uk Ltd,CR402183,Domestic Refuse,Vehicle Parts & Fittings,625
http://statistics.data.gov.uk/id/local-authority/12UE,Huntingdonshire District Council,10/12/2015,180883,96319100,5,495.43,Terberg Matec Uk Ltd,CR402183,Domestic Refuse,Vehicle Parts & Fittings,625
http://statistics.data.gov.uk/id/local-authority/12UE,Huntingdonshire District Council,17/12/2015,179913,96319469,5,538.64,Terberg Matec Uk Ltd,CR402183,Domestic Refuse,Vehicle Maintenance External,619
http://statistics.data.gov.uk/id/local-authority/12UE,Huntingdonshire District Council,17/12/2015,180905,1516/1558,5,5400,Apse,CR479836,Domestic Refuse,Hired Staff,100
http://statistics.data.gov.uk/id/local-authority/12UE,Huntingdonshire District Council,10/12/2015,179830,261028I,5,423.61,A C Commercials,CR000141,Domestic Refuse,Vehicle Oil & Lubricants,626
http://statistics.data.gov.uk/id/local-authority/12UE,Huntingdonshire District Council,23/12/2015,180804,261215I,5,577.5,A C Commercials,CR000141,Domestic Refuse,Vehicle Oil & Lubricants,626
http://statistics.data.gov.uk/id/local-authority/12UE,Huntingdonshire District Council,10/12/2015,179831,261323I,5,19.8,A C Commercials,CR000141,Domestic Refuse,Vehicle Oil & Lubricants,626
http://statistics.data.gov.uk/id/local-authority/12UE,Huntingdonshire District Council,10/12/2015,179831,261323I,5,339.08,A C Commercials,CR000141,Domestic Refuse,Vehicle Parts & Fittings,625
http://statistics.data.gov.uk/id/local-authority/12UE,Huntingdonshire District Council,03/12/2015,179868,DE10908004,5,552.13,Dennis Eagle Ltd,CR000200,Domestic Refuse,Vehicle Parts & Fittings,625
http://statistics.data.gov.uk/id/local-authority/12UE,Huntingdonshire District Council,03/12/2015,179870,DE10909283,5,761,Dennis Eagle Ltd,CR000200,Domestic Refuse,Vehicle Parts & Fittings,625
http://statistics.data.gov.uk/id/local-authority/12UE,Huntingdonshire District Council,17/12/2015,180936,DE10912612,5,266.96,Dennis Eagle Ltd,CR000200,Domestic Refuse,Vehicle Parts & Fittings,625
http://statistics.data.gov.uk/id/local-authority/12UE,Huntingdonshire District Council,23/12/2015,181752,GRN 44041,5,1559.94,Staffline Group,CR416827,Domestic Refuse,Hired Staff,100
http://statistics.data.gov.uk/id/local-authority/12UE,Huntingdonshire District Council,17/12/2015,181341,S04556720,5,161.87,Shell Uk Ltd,CR028192,Domestic Refuse,Diesel,615
http://statistics.data.gov.uk/id/local-authority/12UE,Huntingdonshire District Council,23/12/2015,180961,SINV-089667,5,1598.44,Gelpack Excelsior Limited,CR002966,Domestic Refuse,Refuse Sacks,552
http://statistics.data.gov.uk/id/local-authority/12UE,Huntingdonshire District Council,23/12/2015,181321,SINV-089867,5,3996.1,Gelpack Excelsior Limited,CR002966,Domestic Refuse,Refuse Sacks,552
http://statistics.data.gov.uk/id/local-authority/12UE,Huntingdonshire District Council,23/12/2015,181323,SINV-089868,5,799.22,Gelpack Excelsior Limited,CR002966,Domestic Refuse,Refuse Sacks,552
http://statistics.data.gov.uk/id/local-authority/12UE,Huntingdonshire District Council,03/12/2015,180525,ZPT109345,5,97.18,C F Parkinson Ltd,CR410442,Domestic Refuse,Vehicle Parts & Fittings,625
http://statistics.data.gov.uk/id/local-authority/12UE,Huntingdonshire District Council,23/12/2015,181639,3680,5,1105.72,Enterprise Support Services Uk Ltd,CR422509,E F H And Depots,Building Cleaning,440
http://statistics.data.gov.uk/id/local-authority/12UE,Huntingdonshire District Council,17/12/2015,180257,19250,5,1551.83,Bh Doors & Engineering Ltd,CR455707,E F H And Depots,Building Mtce,303
http://statistics.data.gov.uk/id/local-authority/12UE,Huntingdonshire District Council,17/12/2015,180302,21390,5,535.33,B. S. Graves Electrical Ltd,CR000363,E F H And Depots,Building Mtce,303
http://statistics.data.gov.uk/id/local-authority/12UE,Huntingdonshire District Council,23/12/2015,180497,21405,5,444.31,B. S. Graves Electrical Ltd,CR000363,E F H And Depots,Building Mtce,303
http://statistics.data.gov.uk/id/local-authority/12UE,Huntingdonshire District Council,10/12/2015,179576,39053,5,268.25,Dal-Rod (Camridgeshire),CR413675,E F H And Depots,Building Mtce,303
http://statistics.data.gov.uk/id/local-authority/12UE,Huntingdonshire District Council,17/12/2015,180303,39116,5,1569.6,Dal-Rod (Camridgeshire),CR413675,E F H And Depots,Building Mtce,303
http://statistics.data.gov.uk/id/local-authority/12UE,Huntingdonshire District Council,17/12/2015,180710,65924,5,4916.34,Haven Power Ltd,CR455940,E F H And Depots,Electricity,420
http://statistics.data.gov.uk/id/local-authority/12UE,Huntingdonshire District Council,17/12/2015,181262,12489089940,5,529.32,E-On Energy,CR416430,E F H And Depots,Gas,421
http://statistics.data.gov.uk/id/local-authority/12UE,Huntingdonshire District Council,23/12/2015,181140,2747,5,5393.41,Sci Print Limited,CR416581,Elections,Printing (External),220
http://statistics.data.gov.uk/id/local-authority/12UE,Huntingdonshire District Council,17/12/2015,180008,10805,5,477.6,Victoirepress,CR404724,Elections,Printing (External),220
http://statistics.data.gov.uk/id/local-authority/12UE,Huntingdonshire District Council,17/12/2015,179495,9050958765,5,-8801.83,Royal Mail,CR027083,Elections,Postage,231
http://statistics.data.gov.uk/id/local-authority/12UE,Huntingdonshire District Council,17/12/2015,180413,9051056634,5,3592.37,Royal Mail,CR027083,Elections,Postage,231
http://statistics.data.gov.uk/id/local-authority/12UE,Huntingdonshire District Council,17/12/2015,179934,1216786056,5,60.44,Orange Airtime,CR455799,Electoral Registration,Telephone &Mobile Phonecharges,240
http://statistics.data.gov.uk/id/local-authority/12UE,Huntingdonshire District Council,17/12/2015,178838,9050876085,5,954.88,Royal Mail,CR027083,Electoral Registration,Postage,231
http://statistics.data.gov.uk/id/local-authority/12UE,Huntingdonshire District Council,17/12/2015,179507,9050959236,5,411.27,Royal Mail,CR027083,Electoral Registration,Postage,231
http://statistics.data.gov.uk/id/local-authority/12UE,Huntingdonshire District Council,17/12/2015,180414,9051051860,5,1297.76,Royal Mail,CR027083,Electoral Registration,Postage,231
http://statistics.data.gov.uk/id/local-authority/12UE,Huntingdonshire District Council,17/12/2015,180413,9051056634,5,1751.82,Royal Mail,CR027083,Electoral Registration,Postage,231
http://statistics.data.gov.uk/id/local-authority/12UE,Huntingdonshire District Council,23/12/2015,181160,9051093672,5,69.66,Royal Mail,CR027083,Electoral Registration,Postage,231
http://statistics.data.gov.uk/id/local-authority/12UE,Huntingdonshire District Council,03/12/2015,179118,IN16PS15007003,5,182.1,Whistl,CR479965,Electoral Registration,Postage,231
http://statistics.data.gov.uk/id/local-authority/12UE,Huntingdonshire District Council,10/12/2015,179895,IN16PS15007160,5,406.04,Whistl,CR479965,Electoral Registration,Postage,231
http://statistics.data.gov.uk/id/local-authority/12UE,Huntingdonshire District Council,17/12/2015,179894,IN16PS15007276,5,1036.04,Whistl,CR479965,Electoral Registration,Postage,231
http://statistics.data.gov.uk/id/local-authority/12UE,Huntingdonshire District Council,23/12/2015,180411,IN16PS15007447,5,206.46,Whistl,CR479965,Electoral Registration,Postage,231
http://statistics.data.gov.uk/id/local-authority/12UE,Huntingdonshire District Council,17/12/2015,179934,1216786056,5,249.35,Orange Airtime,CR455799,Environmental Health M Us,Telephone &Mobile Phonecharges,240
http://statistics.data.gov.uk/id/local-authority/12UE,Huntingdonshire District Council,17/12/2015,179583,25932,5,315.6,Thomas Telford Ltd,CR481042,Environmental Management,Books & Publications,250
http://statistics.data.gov.uk/id/local-authority/12UE,Huntingdonshire District Council,17/12/2015,179934,1216786056,5,134.7,Orange Airtime,CR455799,Environmental Management,Telephone &Mobile Phonecharges,240
http://statistics.data.gov.uk/id/local-authority/12UE,Huntingdonshire District Council,14/12/2015,180421,HDC 047,5,2069.22,C G Utilities,CR119758,Facilities Mgt,Consultants,711
http://statistics.data.gov.uk/id/local-authority/12UE,Huntingdonshire District Council,03/12/2015,179604,11175,5,428.83,Lightning Recruitment,CR028184,Financial Services Mus,Hired Staff,100
http://statistics.data.gov.uk/id/local-authority/12UE,Huntingdonshire District Council,10/12/2015,179606,11217,5,696.85,Lightning Recruitment,CR028184,Financial Services Mus,Hired Staff,100
http://statistics.data.gov.uk/id/local-authority/12UE,Huntingdonshire District Council,17/12/2015,180264,11256,5,571.78,Lightning Recruitment,CR028184,Financial Services Mus,Hired Staff,100
http://statistics.data.gov.uk/id/local-authority/12UE,Huntingdonshire District Council,23/12/2015,180505,11296,5,268.02,Lightning Recruitment,CR028184,Financial Services Mus,Hired Staff,100
http://statistics.data.gov.uk/id/local-authority/12UE,Huntingdonshire District Council,10/12/2015,179762,161538,5,621.6,Interaction Recruitment Plc,CR007892,Financial Services Mus,Hired Staff,100
http://statistics.data.gov.uk/id/local-authority/12UE,Huntingdonshire District Council,23/12/2015,180696,640180,5,8.4,Callcredit Ltd,CR455548,Financial Services Mus,Enquiries,723
http://statistics.data.gov.uk/id/local-authority/12UE,Huntingdonshire District Council,10/12/2015,179761,1616537,5,517.48,Interaction Recruitment Plc,CR007892,Financial Services Mus,Hired Staff,100
http://statistics.data.gov.uk/id/local-authority/12UE,Huntingdonshire District Council,17/12/2015,180871,1618632,5,369.6,Interaction Recruitment Plc,CR007892,Financial Services Mus,Hired Staff,100
http://statistics.data.gov.uk/id/local-authority/12UE,Huntingdonshire District Council,23/12/2015,180868,1621105,5,1302.61,Interaction Recruitment Plc,CR007892,Financial Services Mus,Hired Staff,100
http://statistics.data.gov.uk/id/local-authority/12UE,Huntingdonshire District Council,23/12/2015,180869,1621106,5,621.6,Interaction Recruitment Plc,CR007892,Financial Services Mus,Hired Staff,100
http://statistics.data.gov.uk/id/local-authority/12UE,Huntingdonshire District Council,10/12/2015,180273,3113409,5,570,Cipfa Business Limited,CR480088,Financial Services Mus,Training,130
http://statistics.data.gov.uk/id/local-authority/12UE,Huntingdonshire District Council,17/12/2015,179934,1216786056,5,4.8,Orange Airtime,CR455799,Financial Services Mus,Telephone &Mobile Phonecharges,240
http://statistics.data.gov.uk/id/local-authority/12UE,Huntingdonshire District Council,03/12/2015,179172,16/2016,5,599.16,Apt Ltd,CR456018,Financial Services Mus,Software,206
http://statistics.data.gov.uk/id/local-authority/12UE,Huntingdonshire District Council,03/12/2015,178826,BC00138,5,7020,Barry Cornelius Associates,CR422523,Financial Services Mus,Hired Staff,100
http://statistics.data.gov.uk/id/local-authority/12UE,Huntingdonshire District Council,10/12/2015,180676,BC00140,5,8640,Barry Cornelius Associates,CR422523,Financial Services Mus,Hired Staff,100
http://statistics.data.gov.uk/id/local-authority/12UE,Huntingdonshire District Council,30/12/2015,182010,36815,5,260.45,Trinity Engineering & Component Supplies Ltd,CR455479,Fleet Management,Materials,550
http://statistics.data.gov.uk/id/local-authority/12UE,Huntingdonshire District Council,10/12/2015,179830,261028I,5,24.2,A C Commercials,CR000141,Fleet Management,Vehicle Oil & Lubricants,626
http://statistics.data.gov.uk/id/local-authority/12UE,Huntingdonshire District Council,23/12/2015,180804,261215I,5,33,A C Commercials,CR000141,Fleet Management,Vehicle Oil & Lubricants,626
http://statistics.data.gov.uk/id/local-authority/12UE,Huntingdonshire District Council,10/12/2015,179831,261323I,5,1.13,A C Commercials,CR000141,Fleet Management,Vehicle Oil & Lubricants,626
http://statistics.data.gov.uk/id/local-authority/12UE,Huntingdonshire District Council,17/12/2015,181341,S04556720,5,30.01,Shell Uk Ltd,CR028192,Fleet Management,Diesel,615
http://statistics.data.gov.uk/id/local-authority/12UE,Huntingdonshire District Council,03/12/2015,180525,ZPT109345,5,5.56,C F Parkinson Ltd,CR410442,Fleet Management,Vehicle Parts & Fittings,625
http://statistics.data.gov.uk/id/local-authority/12UE,Huntingdonshire District Council,10/12/2015,179882,14564,5,270,Ian'S Tyre & Exhaust Centre,CR405836,Grounds Maintenance,Tyres,630
http://statistics.data.gov.uk/id/local-authority/12UE,Huntingdonshire District Council,23/12/2015,180861,15927,5,304.19,Pristine Condition,CR482653,Grounds Maintenance,Training,130
http://statistics.data.gov.uk/id/local-authority/12UE,Huntingdonshire District Council,10/12/2015,180029,35723,5,1572.9,Groundsman,CR422159,Grounds Maintenance,Equipment,500
http://statistics.data.gov.uk/id/local-authority/12UE,Huntingdonshire District Council,23/12/2015,181764,67788,5,1248,Warren Access Hire And Training,CR422771,Grounds Maintenance,Equipment Hire,507
http://statistics.data.gov.uk/id/local-authority/12UE,Huntingdonshire District Council,10/12/2015,180909,164228,5,2340.43,Arthur Ibbett Ltd,CR000430,Grounds Maintenance,Vehicle Parts & Fittings,625
http://statistics.data.gov.uk/id/local-authority/12UE,Huntingdonshire District Council,17/12/2015,180945,776959,5,3592.17,Ernest Doe & Sons,CR000261,Grounds Maintenance,Vehicle Parts & Fittings,625
http://statistics.data.gov.uk/id/local-authority/12UE,Huntingdonshire District Council,17/12/2015,180944,776960,5,3492.85,Ernest Doe & Sons,CR000261,Grounds Maintenance,Vehicle Parts & Fittings,625
http://statistics.data.gov.uk/id/local-authority/12UE,Huntingdonshire District Council,17/12/2015,180947,776961,5,282.08,Ernest Doe & Sons,CR000261,Grounds Maintenance,Vehicle Parts & Fittings,625
http://statistics.data.gov.uk/id/local-authority/12UE,Huntingdonshire District Council,17/12/2015,180946,776962,5,1130.26,Ernest Doe & Sons,CR000261,Grounds Maintenance,Vehicle Parts & Fittings,625
http://statistics.data.gov.uk/id/local-authority/12UE,Huntingdonshire District Council,23/12/2015,180943,777239,5,1727.83,Ernest Doe & Sons,CR000261,Grounds Maintenance,Vehicle Parts & Fittings,625
http://statistics.data.gov.uk/id/local-authority/12UE,Huntingdonshire District Council,23/12/2015,180842,8661098,5,500.39,Lely Turfcare,CR098282,Grounds Maintenance,Vehicle Parts & Fittings,625
http://statistics.data.gov.uk/id/local-authority/12UE,Huntingdonshire District Council,10/12/2015,180839,11018731,5,649.33,Euramka Promotions Ltd,CR001864,Grounds Maintenance,Diesel,615
http://statistics.data.gov.uk/id/local-authority/12UE,Huntingdonshire District Council,10/12/2015,180839,11018731,5,45.84,Euramka Promotions Ltd,CR001864,Grounds Maintenance,Petrol,614
http://statistics.data.gov.uk/id/local-authority/12UE,Huntingdonshire District Council,23/12/2015,180840,11118786,5,294.3,Euramka Promotions Ltd,CR001864,Grounds Maintenance,Diesel,615
http://statistics.data.gov.uk/id/local-authority/12UE,Huntingdonshire District Council,10/12/2015,179830,261028I,5,278.38,A C Commercials,CR000141,Grounds Maintenance,Vehicle Oil & Lubricants,626
http://statistics.data.gov.uk/id/local-authority/12UE,Huntingdonshire District Council,23/12/2015,180804,261215I,5,379.5,A C Commercials,CR000141,Grounds Maintenance,Vehicle Oil & Lubricants,626
http://statistics.data.gov.uk/id/local-authority/12UE,Huntingdonshire District Council,10/12/2015,179831,261323I,5,13.02,A C Commercials,CR000141,Grounds Maintenance,Vehicle Oil & Lubricants,626
http://statistics.data.gov.uk/id/local-authority/12UE,Huntingdonshire District Council,03/12/2015,179260,IN0473755,5,1117.1,Staffline Group,CR416827,Grounds Maintenance,Hired Staff,100
http://statistics.data.gov.uk/id/local-authority/12UE,Huntingdonshire District Council,03/12/2015,180032,INO475204,5,1117.1,Staffline Group,CR416827,Grounds Maintenance,Hired Staff,100
http://statistics.data.gov.uk/id/local-authority/12UE,Huntingdonshire District Council,03/12/2015,180525,ZPT109345,5,63.86,C F Parkinson Ltd,CR410442,Grounds Maintenance,Vehicle Parts & Fittings,625
http://statistics.data.gov.uk/id/local-authority/12UE,Huntingdonshire District Council,23/12/2015,180931,30-Nov-15,5,3182.5,Edrm Systems Ltd,CR416278,Helpdesk,Hired Staff,100
http://statistics.data.gov.uk/id/local-authority/12UE,Huntingdonshire District Council,17/12/2015,179934,1216786056,5,33,Orange Airtime,CR455799,Helpdesk,Telephone &Mobile Phonecharges,240
http://statistics.data.gov.uk/id/local-authority/12UE,Huntingdonshire District Council,03/12/2015,179494,742878104/1115,5,975.66,Virgin Media Business,CR033120,Helpdesk,I T Line Rental,248
http://statistics.data.gov.uk/id/local-authority/12UE,Huntingdonshire District Council,03/12/2015,179494,742878104/1115,5,1190.36,Virgin Media Business,CR033120,Helpdesk,Telephone &Mobile Phonecharges,240
http://statistics.data.gov.uk/id/local-authority/12UE,Huntingdonshire District Council,10/12/2015,179489,923469-059A,5,7267.61,Virgin Media Business/Cpsn,CR455148,Helpdesk,I T Line Rental,248
http://statistics.data.gov.uk/id/local-authority/12UE,Huntingdonshire District Council,03/12/2015,180487,923469-060A,5,7267.61,Virgin Media Business/Cpsn,CR455148,Helpdesk,I T Line Rental,248
http://statistics.data.gov.uk/id/local-authority/12UE,Huntingdonshire District Council,23/12/2015,180467,PSINV01539528,5,38367.41,Kelway (Uk) Ltd,CR004345,Helpdesk,Equipment Maintenance,511
http://statistics.data.gov.uk/id/local-authority/12UE,Huntingdonshire District Council,03/12/2015,179261,R010143,5,1320,Premier It Recruitment Ltd,CR454029,Helpdesk,Hired Staff,100
http://statistics.data.gov.uk/id/local-authority/12UE,Huntingdonshire District Council,03/12/2015,179262,R010144,5,1320,Premier It Recruitment Ltd,CR454029,Helpdesk,Hired Staff,100
http://statistics.data.gov.uk/id/local-authority/12UE,Huntingdonshire District Council,03/12/2015,179263,R010145,5,1320,Premier It Recruitment Ltd,CR454029,Helpdesk,Hired Staff,100
http://statistics.data.gov.uk/id/local-authority/12UE,Huntingdonshire District Council,03/12/2015,179264,R010146,5,1320,Premier It Recruitment Ltd,CR454029,Helpdesk,Hired Staff,100
http://statistics.data.gov.uk/id/local-authority/12UE,Huntingdonshire District Council,10/12/2015,179256,R010310,5,1320,Premier It Recruitment Ltd,CR454029,Helpdesk,Hired Staff,100
http://statistics.data.gov.uk/id/local-authority/12UE,Huntingdonshire District Council,10/12/2015,179257,R010311,5,1320,Premier It Recruitment Ltd,CR454029,Helpdesk,Hired Staff,100
http://statistics.data.gov.uk/id/local-authority/12UE,Huntingdonshire District Council,10/12/2015,179259,R010312,5,1320,Premier It Recruitment Ltd,CR454029,Helpdesk,Hired Staff,100
http://statistics.data.gov.uk/id/local-authority/12UE,Huntingdonshire District Council,17/12/2015,179580,R010463,5,1320,Premier It Recruitment Ltd,CR454029,Helpdesk,Hired Staff,100
http://statistics.data.gov.uk/id/local-authority/12UE,Huntingdonshire District Council,17/12/2015,179581,R010464,5,1320,Premier It Recruitment Ltd,CR454029,Helpdesk,Hired Staff,100
http://statistics.data.gov.uk/id/local-authority/12UE,Huntingdonshire District Council,17/12/2015,179582,R010465,5,1320,Premier It Recruitment Ltd,CR454029,Helpdesk,Hired Staff,100
http://statistics.data.gov.uk/id/local-authority/12UE,Huntingdonshire District Council,23/12/2015,180010,R010631,5,1320,Premier It Recruitment Ltd,CR454029,Helpdesk,Hired Staff,100
http://statistics.data.gov.uk/id/local-authority/12UE,Huntingdonshire District Council,23/12/2015,180011,R010632,5,1320,Premier It Recruitment Ltd,CR454029,Helpdesk,Hired Staff,100
http://statistics.data.gov.uk/id/local-authority/12UE,Huntingdonshire District Council,23/12/2015,180012,R010633,5,1320,Premier It Recruitment Ltd,CR454029,Helpdesk,Hired Staff,100
http://statistics.data.gov.uk/id/local-authority/12UE,Huntingdonshire District Council,23/12/2015,180483,R010713,5,1320,Premier It Recruitment Ltd,CR454029,Helpdesk,Hired Staff,100
http://statistics.data.gov.uk/id/local-authority/12UE,Huntingdonshire District Council,23/12/2015,180482,R010714,5,1320,Premier It Recruitment Ltd,CR454029,Helpdesk,Hired Staff,100
http://statistics.data.gov.uk/id/local-authority/12UE,Huntingdonshire District Council,23/12/2015,180484,R010715,5,1320,Premier It Recruitment Ltd,CR454029,Helpdesk,Hired Staff,100
http://statistics.data.gov.uk/id/local-authority/12UE,Huntingdonshire District Council,23/12/2015,180468,SINV00080081,5,328.8,Bist,CR422733,Helpdesk,Other I T Hardware,203
http://statistics.data.gov.uk/id/local-authority/12UE,Huntingdonshire District Council,03/12/2015,180326,625,5,1944,Elephant & Castle Freehouse & Motel,CR401969,Homelessness Management,Bed & Breakfast Payment,818
http://statistics.data.gov.uk/id/local-authority/12UE,Huntingdonshire District Council,10/12/2015,180787,626,5,1134,Elephant & Castle Freehouse & Motel,CR401969,Homelessness Management,Bed & Breakfast Payment,818
http://statistics.data.gov.uk/id/local-authority/12UE,Huntingdonshire District Council,17/12/2015,181253,627,5,1296,Elephant & Castle Freehouse & Motel,CR401969,Homelessness Management,Bed & Breakfast Payment,818
http://statistics.data.gov.uk/id/local-authority/12UE,Huntingdonshire District Council,23/12/2015,181707,628,5,1728,Elephant & Castle Freehouse & Motel,CR401969,Homelessness Management,Bed & Breakfast Payment,818
http://statistics.data.gov.uk/id/local-authority/12UE,Huntingdonshire District Council,17/12/2015,181384,18442,5,1395,King Street Housing Society,CR409301,Homelessness Management,Management Charge,733
http://statistics.data.gov.uk/id/local-authority/12UE,Huntingdonshire District Council,10/12/2015,180794,18737,5,1869.91,King Street Housing Society,CR409301,Homelessness Management,Management Charge,733
http://statistics.data.gov.uk/id/local-authority/12UE,Huntingdonshire District Council,17/12/2015,181382,18804,5,1713.87,King Street Housing Society,CR409301,Homelessness Management,Management Charge,733
http://statistics.data.gov.uk/id/local-authority/12UE,Huntingdonshire District Council,10/12/2015,180796,18818,5,1818.65,King Street Housing Society,CR409301,Homelessness Management,Management Charge,733
http://statistics.data.gov.uk/id/local-authority/12UE,Huntingdonshire District Council,10/12/2015,180791,18934,5,1499.15,King Street Housing Society,CR409301,Homelessness Management,Management Charge,733
http://statistics.data.gov.uk/id/local-authority/12UE,Huntingdonshire District Council,03/12/2015,180494,19044,5,1350,King Street Housing Society,CR409301,Homelessness Management,Management Charge,733
http://statistics.data.gov.uk/id/local-authority/12UE,Huntingdonshire District Council,03/12/2015,180492,24.11.15 MOVE,5,552,Alexanders,CR415843,Homelessness Management,Removal/Storage,750
http://statistics.data.gov.uk/id/local-authority/12UE,Huntingdonshire District Council,23/12/2015,181371,11442,5,13176,Callcredit Ltd,CR455548,Housing  Benefits Admin,Software,206
http://statistics.data.gov.uk/id/local-authority/12UE,Huntingdonshire District Council,23/12/2015,180495,16132,5,9600,Housing Partners Ltd,CR423111,Housing  Benefits Admin,Software,206
http://statistics.data.gov.uk/id/local-authority/12UE,Huntingdonshire District Council,23/12/2015,180696,640180,5,55.2,Callcredit Ltd,CR455548,Housing  Benefits Admin,Enquiries,723
http://statistics.data.gov.uk/id/local-authority/12UE,Huntingdonshire District Council,10/12/2015,589877,780827,6,6666.66,Breckland Council,CR416546,Housing  Benefits Admin,Contribution (Paid Out),810
http://statistics.data.gov.uk/id/local-authority/12UE,Huntingdonshire District Council,10/12/2015,589878,780841,6,2000,Breckland Council,CR416546,Housing  Benefits Admin,Software,206
http://statistics.data.gov.uk/id/local-authority/12UE,Huntingdonshire District Council,03/12/2015,180357,3126003,5,1531.26,Venn Group Recruitment,CR415403,Housing  Benefits Admin,Hired Staff,100
http://statistics.data.gov.uk/id/local-authority/12UE,Huntingdonshire District Council,03/12/2015,180358,3126004,5,1332,Venn Group Recruitment,CR415403,Housing  Benefits Admin,Hired Staff,100
http://statistics.data.gov.uk/id/local-authority/12UE,Huntingdonshire District Council,10/12/2015,180799,3128526,5,1195.57,Venn Group Recruitment,CR415403,Housing  Benefits Admin,Hired Staff,100
http://statistics.data.gov.uk/id/local-authority/12UE,Huntingdonshire District Council,17/12/2015,181158,3131031,5,1235.16,Venn Group Recruitment,CR415403,Housing  Benefits Admin,Hired Staff,100
http://statistics.data.gov.uk/id/local-authority/12UE,Huntingdonshire District Council,23/12/2015,181716,3133428,5,1252.08,Venn Group Recruitment,CR415403,Housing  Benefits Admin,Hired Staff,100
http://statistics.data.gov.uk/id/local-authority/12UE,Huntingdonshire District Council,30/12/2015,182011,3135717,5,1015.2,Venn Group Recruitment,CR415403,Housing  Benefits Admin,Hired Staff,100
http://statistics.data.gov.uk/id/local-authority/12UE,Huntingdonshire District Council,03/12/2015,179214,91357797,5,1898.59,Northgate Information Solutions Uk Ltd,CR415749,Housing  Benefits Admin,Software,206
http://statistics.data.gov.uk/id/local-authority/12UE,Huntingdonshire District Council,17/12/2015,179934,1216786056,5,86.4,Orange Airtime,CR455799,Housing  Benefits Admin,Telephone &Mobile Phonecharges,240
http://statistics.data.gov.uk/id/local-authority/12UE,Huntingdonshire District Council,03/12/2015,179118,IN16PS15007003,5,233.32,Whistl,CR479965,Housing  Benefits Admin,Postage,231
http://statistics.data.gov.uk/id/local-authority/12UE,Huntingdonshire District Council,23/12/2015,180411,IN16PS15007447,5,413.36,Whistl,CR479965,Housing  Benefits Admin,Postage,231
http://statistics.data.gov.uk/id/local-authority/12UE,Huntingdonshire District Council,10/12/2015,179223,LAD7935,5,594,L A Directories Ltd,CR479153,Housing  Benefits Admin,Software,206
http://statistics.data.gov.uk/id/local-authority/12UE,Huntingdonshire District Council,30/12/2015,591648,PO27282,1,2047.7,St Ives Town Council,CR000701,Housing  Benefits Admin,Hire Of Rooms,411
http://statistics.data.gov.uk/id/local-authority/12UE,Huntingdonshire District Council,17/12/2015,179934,1216786056,5,19.2,Orange Airtime,CR455799,Housing Management Units,Telephone &Mobile Phonecharges,240
http://statistics.data.gov.uk/id/local-authority/12UE,Huntingdonshire District Council,17/12/2015,181252,481291201,5,2657.05,Swalec,CR407130,Housing Services Other,Electricity,420
http://statistics.data.gov.uk/id/local-authority/12UE,Huntingdonshire District Council,17/12/2015,181377,HDC2015-06,5,4552.8,Kelsall Consultancy Ltd,CR422497,Housing Strategy,Consultants,711
http://statistics.data.gov.uk/id/local-authority/12UE,Huntingdonshire District Council,23/12/2015,181617,113631,5,840,Rsa Environmental Health Limited,CR482415,Human Resources,Consultants,711
http://statistics.data.gov.uk/id/local-authority/12UE,Huntingdonshire District Council,17/12/2015,179934,1216786056,5,4.8,Orange Airtime,CR455799,Human Resources,Telephone &Mobile Phonecharges,240
http://statistics.data.gov.uk/id/local-authority/12UE,Huntingdonshire District Council,23/12/2015,181765,C-0002225048,5,197.1,Computershare Vouchers Ltd,CR412205,Human Resources,Childcare Admin Vouchers,144
http://statistics.data.gov.uk/id/local-authority/12UE,Huntingdonshire District Council,10/12/2015,589586,ST00334260,4,4177.5,Handicare,CR481107,Improvement Grants,Mandatory Grants,801
http://statistics.data.gov.uk/id/local-authority/12UE,Huntingdonshire District Council,17/12/2015,180973,7767/21775,5,4667.15,Roofing Contractors (Cambridge) Ltd,CR422450,Industrial Properties,Building Mtce,303
http://statistics.data.gov.uk/id/local-authority/12UE,Huntingdonshire District Council,23/12/2015,180316,7786/21776,5,2166.24,Roofing Contractors (Cambridge) Ltd,CR422450,Industrial Properties,Building Mtce,303
http://statistics.data.gov.uk/id/local-authority/12UE,Huntingdonshire District Council,03/12/2015,180499,11298,5,289.44,Lightning Recruitment,CR028184,Information Manager,Hired Staff,100
http://statistics.data.gov.uk/id/local-authority/12UE,Huntingdonshire District Council,10/12/2015,180918,11339,5,289.44,Lightning Recruitment,CR028184,Information Manager,Hired Staff,100
http://statistics.data.gov.uk/id/local-authority/12UE,Huntingdonshire District Council,17/12/2015,181367,11385,5,289.44,Lightning Recruitment,CR028184,Information Manager,Hired Staff,100
http://statistics.data.gov.uk/id/local-authority/12UE,Huntingdonshire District Council,23/12/2015,181714,11433,5,289.44,Lightning Recruitment,CR028184,Information Manager,Hired Staff,100
http://statistics.data.gov.uk/id/local-authority/12UE,Huntingdonshire District Council,17/12/2015,181366,103986,5,5400,Idox Information Solutions Ltd,CR481134,Information Manager,Software,206
http://statistics.data.gov.uk/id/local-authority/12UE,Huntingdonshire District Council,17/12/2015,181368,104021,5,-2677.81,Idox Information Solutions Ltd,CR481134,Information Manager,Software,206
http://statistics.data.gov.uk/id/local-authority/12UE,Huntingdonshire District Council,17/12/2015,179934,1216786056,5,14.4,Orange Airtime,CR455799,Information Manager,Telephone &Mobile Phonecharges,240
http://statistics.data.gov.uk/id/local-authority/12UE,Huntingdonshire District Council,23/12/2015,181121,13288,5,351.54,Jade Security Services Ltd,CR422256,Interest Received,Cash Collection,702
http://statistics.data.gov.uk/id/local-authority/12UE,Huntingdonshire District Council,23/12/2015,180516,19261,5,5845.45,Bh Doors & Engineering Ltd,CR455707,Leisure Centres Capital,Building Mtce,303
http://statistics.data.gov.uk/id/local-authority/12UE,Huntingdonshire District Council,03/12/2015,179535,02-Nov-15,5,1969,Richard Sistrom Painting & Decorating,CR422887,Leisure Centres Capital,Building Mtce,303
http://statistics.data.gov.uk/id/local-authority/12UE,Huntingdonshire District Council,10/12/2015,179534,10-Nov-15,5,2990,Richard Sistrom Painting & Decorating,CR422887,Leisure Centres Capital,Building Mtce,303
http://statistics.data.gov.uk/id/local-authority/12UE,Huntingdonshire District Council,23/12/2015,180435,424667,5,1293.46,Heasell Electromechanical Services Ltd,CR422407,Leisure Centres Capital,Plant & Equipment Maintenance,380
http://statistics.data.gov.uk/id/local-authority/12UE,Huntingdonshire District Council,10/12/2015,180726,OLSN,5,2990,Richard Sistrom Painting & Decorating,CR422887,Leisure Centres Capital,Building Mtce,303
http://statistics.data.gov.uk/id/local-authority/12UE,Huntingdonshire District Council,10/12/2015,180727,OLSN,5,1969,Richard Sistrom Painting & Decorating,CR422887,Leisure Centres Capital,Building Mtce,303
http://statistics.data.gov.uk/id/local-authority/12UE,Huntingdonshire District Council,23/12/2015,181571,OLSN,5,396,Richard Sistrom Painting & Decorating,CR422887,Leisure Centres Capital,Building Mtce,303
http://statistics.data.gov.uk/id/local-authority/12UE,Huntingdonshire District Council,10/12/2015,180755,OLSN-JC-I1701,5,1920,Tony Gay,CR415274,Leisure Centres Capital,Building Mtce,303
http://statistics.data.gov.uk/id/local-authority/12UE,Huntingdonshire District Council,17/12/2015,181401,151,5,500,St Ives Quay News,CR422868,Leisure Centres Overall,Advertising/Promoting Services,255
http://statistics.data.gov.uk/id/local-authority/12UE,Huntingdonshire District Council,23/12/2015,181408,15577,5,478.8,Bigprinting,CR416383,Leisure Centres Overall,Printing (External),220
http://statistics.data.gov.uk/id/local-authority/12UE,Huntingdonshire District Council,03/12/2015,178856,75831,5,3489.48,Gladstone Mrm,CR405717,Leisure Centres Overall,Software,206
http://statistics.data.gov.uk/id/local-authority/12UE,Huntingdonshire District Council,23/12/2015,180291,55389541,5,258,Archant Herts & Cambs,CR415764,Leisure Centres Overall,Advertising/Promoting Services,255
http://statistics.data.gov.uk/id/local-authority/12UE,Huntingdonshire District Council,17/12/2015,179934,1216786056,5,12,Orange Airtime,CR455799,Leisure Centres Overall,Telephone &Mobile Phonecharges,240
http://statistics.data.gov.uk/id/local-authority/12UE,Huntingdonshire District Council,23/12/2015,181160,9051093672,5,2418.02,Royal Mail,CR027083,Leisure Centres Overall,Postage,231
http://statistics.data.gov.uk/id/local-authority/12UE,Huntingdonshire District Council,17/12/2015,180104,SINV00074501,5,1584,Exterion Media Uk Ltd,CR422758,Leisure Centres Overall,Advertising/Promoting Services,255
http://statistics.data.gov.uk/id/local-authority/12UE,Huntingdonshire District Council,17/12/2015,180104,SINV00074501,5,464.4,Exterion Media Uk Ltd,CR422758,Leisure Centres Overall,Printing (External),220
http://statistics.data.gov.uk/id/local-authority/12UE,Huntingdonshire District Council,10/12/2015,180266,4,5,315,Ocean Adventure Dive College,CR423101,Leisure Development,Instructors/Tutors,720
http://statistics.data.gov.uk/id/local-authority/12UE,Huntingdonshire District Council,03/12/2015,179474,133,5,813.6,Huntingdon Gymnastics Club,CR478042,Leisure Development,Instructors/Tutors,720
http://statistics.data.gov.uk/id/local-authority/12UE,Huntingdonshire District Council,17/12/2015,180267,7722,5,1575,The Dyslexia Association,CR422158,Leisure Development,Training,130
http://statistics.data.gov.uk/id/local-authority/12UE,Huntingdonshire District Council,10/12/2015,179561,37218,5,314.4,Mark Harrod Ltd,CR416142,Leisure Development,Sports Equipment,524
http://statistics.data.gov.uk/id/local-authority/12UE,Huntingdonshire District Council,17/12/2015,179934,1216786056,5,48.72,Orange Airtime,CR455799,Leisure Development,Telephone &Mobile Phonecharges,240
http://statistics.data.gov.uk/id/local-authority/12UE,Huntingdonshire District Council,10/12/2015,179471,0013/2015,5,313,Get Inspired Golf Ltd,CR412288,Leisure Development,Instructors/Tutors,720
http://statistics.data.gov.uk/id/local-authority/12UE,Huntingdonshire District Council,03/12/2015,179473,I02C00142333,5,559,Ymca Fitness Industry Training,CR416456,Leisure Development,Training,130
http://statistics.data.gov.uk/id/local-authority/12UE,Huntingdonshire District Council,03/12/2015,180269,INV241082,5,529.2,Workwear Express Ltd,CR422794,Leisure Development,Advertising/Promoting Services,255
http://statistics.data.gov.uk/id/local-authority/12UE,Huntingdonshire District Council,03/12/2015,178718,2943,5,1920,Adams Autos,CR422066,Licences,Vehicle Inspection,618
http://statistics.data.gov.uk/id/local-authority/12UE,Huntingdonshire District Council,17/12/2015,179934,1216786056,5,7.2,Orange Airtime,CR455799,Licences,Telephone &Mobile Phonecharges,240
http://statistics.data.gov.uk/id/local-authority/12UE,Huntingdonshire District Council,23/12/2015,180983,T25632,5,1005.6,Mogo Uk,CR410378,Licences,Licence Plates,564
http://statistics.data.gov.uk/id/local-authority/12UE,Huntingdonshire District Council,23/12/2015,180983,T25632,5,17.88,Mogo Uk,CR410378,Licences,Postage,231
http://statistics.data.gov.uk/id/local-authority/12UE,Huntingdonshire District Council,17/12/2015,179934,1216786056,5,31.2,Orange Airtime,CR455799,Member Allowances & Support,Telephone &Mobile Phonecharges,240
http://statistics.data.gov.uk/id/local-authority/12UE,Huntingdonshire District Council,03/12/2015,179494,742878104/1115,5,6.9,Virgin Media Business,CR033120,Member Allowances & Support,I T Line Rental,248
http://statistics.data.gov.uk/id/local-authority/12UE,Huntingdonshire District Council,17/12/2015,591021,COMM CHEST GRT,1,1250,Yelling Parish Council,CR002494,Miscellaneous Grants,Grants (Paid Out),800
http://statistics.data.gov.uk/id/local-authority/12UE,Huntingdonshire District Council,17/12/2015,179741,"BNDR 5/10,2/11",5,365.18,Jacobs,CR422350,N N D R Administration,Bailiffs,703
http://statistics.data.gov.uk/id/local-authority/12UE,Huntingdonshire District Council,17/12/2015,181327,13198,5,5328.36,Jade Security Services Ltd,CR422256,Off Street Parking,Cash Collection,702
http://statistics.data.gov.uk/id/local-authority/12UE,Huntingdonshire District Council,23/12/2015,181741,13287,5,4801.68,Jade Security Services Ltd,CR422256,Off Street Parking,Cash Collection,702
http://statistics.data.gov.uk/id/local-authority/12UE,Huntingdonshire District Council,17/12/2015,181212,107238,5,3610.33,Cale Briparc Ltd,CR401137,Off Street Parking,Car Park Machines,522
http://statistics.data.gov.uk/id/local-authority/12UE,Huntingdonshire District Council,17/12/2015,180037,108144,5,3610.33,Cale Briparc Ltd,CR401137,Off Street Parking,Car Park Machines,522
http://statistics.data.gov.uk/id/local-authority/12UE,Huntingdonshire District Council,23/12/2015,180747,371226896,5,717.92,Swalec,CR407130,Off Street Parking,Electricity,420
http://statistics.data.gov.uk/id/local-authority/12UE,Huntingdonshire District Council,17/12/2015,179934,1216786056,5,21.6,Orange Airtime,CR455799,Off Street Parking,Telephone &Mobile Phonecharges,240
http://statistics.data.gov.uk/id/local-authority/12UE,Huntingdonshire District Council,03/12/2015,178864,15/0493,5,1136.69,Fire And Safety Solutions Ltd,CR479928,Off Street Parking,Building Mtce,303
http://statistics.data.gov.uk/id/local-authority/12UE,Huntingdonshire District Council,17/12/2015,180036,B3121378,5,2260.08,Bemrose Mobile Ltd,CR422668,Off Street Parking,Telephone &Mobile Phonecharges,240
http://statistics.data.gov.uk/id/local-authority/12UE,Huntingdonshire District Council,03/12/2015,180475,1150,5,1136.4,Burner & Combustion Ltd,CR422900,One Leisure Huntingdon,Building Mtce,303
http://statistics.data.gov.uk/id/local-authority/12UE,Huntingdonshire District Council,23/12/2015,180423,1260,5,90,Talk Twenty 1,CR422876,One Leisure Huntingdon,Advertising/Promoting Services,255
http://statistics.data.gov.uk/id/local-authority/12UE,Huntingdonshire District Council,23/12/2015,181639,3680,5,1185.49,Enterprise Support Services Uk Ltd,CR422509,One Leisure Huntingdon,Building Cleaning,440
http://statistics.data.gov.uk/id/local-authority/12UE,Huntingdonshire District Council,03/12/2015,179955,9479,5,108,Roger Wilson Electronics,CR028041,One Leisure Huntingdon,Building Mtce,303
http://statistics.data.gov.uk/id/local-authority/12UE,Huntingdonshire District Council,03/12/2015,179955,9479,5,1046.4,Roger Wilson Electronics,CR028041,One Leisure Huntingdon,Equipment,500
http://statistics.data.gov.uk/id/local-authority/12UE,Huntingdonshire District Council,23/12/2015,181121,13288,5,301.32,Jade Security Services Ltd,CR422256,One Leisure Huntingdon,Cash Collection,702
http://statistics.data.gov.uk/id/local-authority/12UE,Huntingdonshire District Council,23/12/2015,181407,15585,5,181.68,Bigprinting,CR416383,One Leisure Huntingdon,Printing (External),220
http://statistics.data.gov.uk/id/local-authority/12UE,Huntingdonshire District Council,23/12/2015,180718,18607,5,370.44,Mcintyre Leisure,CR404059,One Leisure Huntingdon,Building Mtce,303
http://statistics.data.gov.uk/id/local-authority/12UE,Huntingdonshire District Council,17/12/2015,181241,19020,5,587.34,Bh Doors & Engineering Ltd,CR455707,One Leisure Huntingdon,Building Mtce,303
http://statistics.data.gov.uk/id/local-authority/12UE,Huntingdonshire District Council,23/12/2015,180719,40504,5,1283.44,Plumbing Centre Ltd,CR415401,One Leisure Huntingdon,Building Mtce,303
http://statistics.data.gov.uk/id/local-authority/12UE,Huntingdonshire District Council,17/12/2015,180770,65916,5,5090.39,Haven Power Ltd,CR455940,One Leisure Huntingdon,Electricity,420
http://statistics.data.gov.uk/id/local-authority/12UE,Huntingdonshire District Council,03/12/2015,178856,75831,5,3489.48,Gladstone Mrm,CR405717,One Leisure Huntingdon,Software,206
http://statistics.data.gov.uk/id/local-authority/12UE,Huntingdonshire District Council,03/12/2015,179210,75901,5,560.4,Servicesport (Uk) Ltd,CR422867,One Leisure Huntingdon,Equipment Maintenance,511
http://statistics.data.gov.uk/id/local-authority/12UE,Huntingdonshire District Council,03/12/2015,179570,78791,5,385.8,Jsa Leisure Ltd,CR40187,One Leisure Huntingdon,Chemicals,551
http://statistics.data.gov.uk/id/local-authority/12UE,Huntingdonshire District Council,23/12/2015,180681,78842,5,384,Jsa Leisure Ltd,CR40187,One Leisure Huntingdon,Plant & Equipment Maintenance,380
http://statistics.data.gov.uk/id/local-authority/12UE,Huntingdonshire District Council,23/12/2015,180721,202993,5,321.6,Dcrs Ltd,CR478074,One Leisure Huntingdon,Building Mtce,303
http://statistics.data.gov.uk/id/local-authority/12UE,Huntingdonshire District Council,10/12/2015,179750,5136390,5,886.8,Integrated Water Services Ltd,CR452140,One Leisure Huntingdon,Building Mtce,303
http://statistics.data.gov.uk/id/local-authority/12UE,Huntingdonshire District Council,23/12/2015,181211,15014306,5,1454.4,Technogym Uk Ltd,CR033037,One Leisure Huntingdon,Equipment,500
http://statistics.data.gov.uk/id/local-authority/12UE,Huntingdonshire District Council,23/12/2015,180746,92137723,5,281.36,Speedo International Limited,CR41427,One Leisure Huntingdon,Materials For Resale,570
http://statistics.data.gov.uk/id/local-authority/12UE,Huntingdonshire District Council,17/12/2015,181250,381239505,5,856.38,Swalec,CR407130,One Leisure Huntingdon,Electricity,420
http://statistics.data.gov.uk/id/local-authority/12UE,Huntingdonshire District Council,03/12/2015,180453,381239505,5,523.21,Swalec,CR407130,One Leisure Huntingdon,Electricity,420
http://statistics.data.gov.uk/id/local-authority/12UE,Huntingdonshire District Council,10/12/2015,180100,1121313921,5,1561.72,Konica Minolta,CR478866,One Leisure Huntingdon,Equipment,500
http://statistics.data.gov.uk/id/local-authority/12UE,Huntingdonshire District Council,17/12/2015,181266,12489088110,5,4249.72,E-On Energy,CR416430,One Leisure Huntingdon,Gas,421
http://statistics.data.gov.uk/id/local-authority/12UE,Huntingdonshire District Council,17/12/2015,181260,12489088970,5,901.88,E-On Energy,CR416430,One Leisure Huntingdon,Gas,421
http://statistics.data.gov.uk/id/local-authority/12UE,Huntingdonshire District Council,03/12/2015,179172,16/2016,5,59.94,Apt Ltd,CR456018,One Leisure Huntingdon,Software,206
http://statistics.data.gov.uk/id/local-authority/12UE,Huntingdonshire District Council,03/12/2015,179138,44SI4407375,5,550.3,Brenntag Uk Ltd,CR015017,One Leisure Huntingdon,Chemicals,551
http://statistics.data.gov.uk/id/local-authority/12UE,Huntingdonshire District Council,03/12/2015,179494,742878104/1115,5,0.49,Virgin Media Business,CR033120,One Leisure Huntingdon,Telephone &Mobile Phonecharges,240
http://statistics.data.gov.uk/id/local-authority/12UE,Huntingdonshire District Council,23/12/2015,180477,GM12751,5,420.65,Garner Medical Ltd,CR003972,One Leisure Huntingdon,Equipment Maintenance,511
http://statistics.data.gov.uk/id/local-authority/12UE,Huntingdonshire District Council,23/12/2015,180742,ONELEISURECENTR,5,75,Lui The Plumber,CR422379,One Leisure Huntingdon,Building Mtce,303
http://statistics.data.gov.uk/id/local-authority/12UE,Huntingdonshire District Council,23/12/2015,180789,SBO1030224,5,293.9,Veolia Es Uk Ltd,CR478889,One Leisure Huntingdon,Waste Disposal,763
http://statistics.data.gov.uk/id/local-authority/12UE,Huntingdonshire District Council,03/12/2015,179751,SIN527184,5,425.04,Corporate Trends,CR415966,One Leisure Huntingdon,Protective Clothing & Uniforms,163
http://statistics.data.gov.uk/id/local-authority/12UE,Huntingdonshire District Council,23/12/2015,180423,1260,5,90,Talk Twenty 1,CR422876,One Leisure Ramsey,Advertising/Promoting Services,255
http://statistics.data.gov.uk/id/local-authority/12UE,Huntingdonshire District Council,23/12/2015,181639,3680,5,798.4,Enterprise Support Services Uk Ltd,CR422509,One Leisure Ramsey,Building Cleaning,440
http://statistics.data.gov.uk/id/local-authority/12UE,Huntingdonshire District Council,10/12/2015,180424,9485,5,18,Roger Wilson Electronics,CR028041,One Leisure Ramsey,Building Mtce,303
http://statistics.data.gov.uk/id/local-authority/12UE,Huntingdonshire District Council,10/12/2015,180424,9485,5,346.8,Roger Wilson Electronics,CR028041,One Leisure Ramsey,Equipment,500
http://statistics.data.gov.uk/id/local-authority/12UE,Huntingdonshire District Council,23/12/2015,181121,13288,5,83.7,Jade Security Services Ltd,CR422256,One Leisure Ramsey,Cash Collection,702
http://statistics.data.gov.uk/id/local-authority/12UE,Huntingdonshire District Council,23/12/2015,181407,15585,5,181.68,Bigprinting,CR416383,One Leisure Ramsey,Printing (External),220
http://statistics.data.gov.uk/id/local-authority/12UE,Huntingdonshire District Council,23/12/2015,181615,18577,5,506.4,Mcintyre Leisure,CR404059,One Leisure Ramsey,Plant & Equipment Maintenance,380
http://statistics.data.gov.uk/id/local-authority/12UE,Huntingdonshire District Council,03/12/2015,178856,75831,5,1163.16,Gladstone Mrm,CR405717,One Leisure Ramsey,Software,206
http://statistics.data.gov.uk/id/local-authority/12UE,Huntingdonshire District Council,17/12/2015,181348,502242,5,330,Kidscience Ltd,CR452703,One Leisure Ramsey,Entertainments Inc Cable Tv,744
http://statistics.data.gov.uk/id/local-authority/12UE,Huntingdonshire District Council,10/12/2015,179464,10122134,5,334.25,Lucozade Ribena Suntory Ltd,CR422660,One Leisure Ramsey,Vending Materials,560
http://statistics.data.gov.uk/id/local-authority/12UE,Huntingdonshire District Council,23/12/2015,181211,15014306,5,1454.4,Technogym Uk Ltd,CR033037,One Leisure Ramsey,Equipment,500
http://statistics.data.gov.uk/id/local-authority/12UE,Huntingdonshire District Council,10/12/2015,180271,92127362,5,617.57,Speedo International Limited,CR41427,One Leisure Ramsey,Materials For Resale,570
http://statistics.data.gov.uk/id/local-authority/12UE,Huntingdonshire District Council,10/12/2015,180788,341225796,5,3227.52,Swalec,CR407130,One Leisure Ramsey,Electricity,420
http://statistics.data.gov.uk/id/local-authority/12UE,Huntingdonshire District Council,17/12/2015,181251,341225796,5,2964.74,Swalec,CR407130,One Leisure Ramsey,Electricity,420
http://statistics.data.gov.uk/id/local-authority/12UE,Huntingdonshire District Council,10/12/2015,179476,6740518155,5,21.58,Lyreco Uk Ltd,CR400700,One Leisure Ramsey,Stationery,225
http://statistics.data.gov.uk/id/local-authority/12UE,Huntingdonshire District Council,10/12/2015,179476,6740518155,5,58.79,Lyreco Uk Ltd,CR400700,One Leisure Ramsey,Stationery,225
http://statistics.data.gov.uk/id/local-authority/12UE,Huntingdonshire District Council,10/12/2015,179476,6740518155,5,71.28,Lyreco Uk Ltd,CR400700,One Leisure Ramsey,Stationery,225
http://statistics.data.gov.uk/id/local-authority/12UE,Huntingdonshire District Council,10/12/2015,179476,6740518155,5,123.35,Lyreco Uk Ltd,CR400700,One Leisure Ramsey,Stationery,225
http://statistics.data.gov.uk/id/local-authority/12UE,Huntingdonshire District Council,10/12/2015,179476,6740518155,5,2.98,Lyreco Uk Ltd,CR400700,One Leisure Ramsey,Stationery,225
http://statistics.data.gov.uk/id/local-authority/12UE,Huntingdonshire District Council,10/12/2015,179476,6740518155,5,7.8,Lyreco Uk Ltd,CR400700,One Leisure Ramsey,Stationery,225
http://statistics.data.gov.uk/id/local-authority/12UE,Huntingdonshire District Council,10/12/2015,179476,6740518155,5,7.8,Lyreco Uk Ltd,CR400700,One Leisure Ramsey,Stationery,225
http://statistics.data.gov.uk/id/local-authority/12UE,Huntingdonshire District Council,10/12/2015,179476,6740518155,5,19.02,Lyreco Uk Ltd,CR400700,One Leisure Ramsey,Stationery,225
http://statistics.data.gov.uk/id/local-authority/12UE,Huntingdonshire District Council,17/12/2015,181264,12489090790,5,1962.62,E-On Energy,CR416430,One Leisure Ramsey,Gas,421
http://statistics.data.gov.uk/id/local-authority/12UE,Huntingdonshire District Council,03/12/2015,179172,16/2016,5,59.94,Apt Ltd,CR456018,One Leisure Ramsey,Software,206
http://statistics.data.gov.uk/id/local-authority/12UE,Huntingdonshire District Council,03/12/2015,179751,SIN527184,5,250.46,Corporate Trends,CR415966,One Leisure Ramsey,Protective Clothing & Uniforms,163
http://statistics.data.gov.uk/id/local-authority/12UE,Huntingdonshire District Council,23/12/2015,181399,130,5,620,Caresco,CR026005,One Leisure Sawtry,Advertising/Promoting Services,255
http://statistics.data.gov.uk/id/local-authority/12UE,Huntingdonshire District Council,23/12/2015,180423,1260,5,90,Talk Twenty 1,CR422876,One Leisure Sawtry,Advertising/Promoting Services,255
http://statistics.data.gov.uk/id/local-authority/12UE,Huntingdonshire District Council,23/12/2015,181639,3680,5,874.02,Enterprise Support Services Uk Ltd,CR422509,One Leisure Sawtry,Building Cleaning,440
http://statistics.data.gov.uk/id/local-authority/12UE,Huntingdonshire District Council,23/12/2015,181121,13288,5,83.7,Jade Security Services Ltd,CR422256,One Leisure Sawtry,Cash Collection,702
http://statistics.data.gov.uk/id/local-authority/12UE,Huntingdonshire District Council,23/12/2015,181407,15585,5,181.68,Bigprinting,CR416383,One Leisure Sawtry,Printing (External),220
http://statistics.data.gov.uk/id/local-authority/12UE,Huntingdonshire District Council,03/12/2015,180284,19255,5,306,Bh Doors & Engineering Ltd,CR455707,One Leisure Sawtry,Building Mtce,303
http://statistics.data.gov.uk/id/local-authority/12UE,Huntingdonshire District Council,03/12/2015,178856,75831,5,1163.16,Gladstone Mrm,CR405717,One Leisure Sawtry,Software,206
http://statistics.data.gov.uk/id/local-authority/12UE,Huntingdonshire District Council,23/12/2015,181211,15014306,5,1454.4,Technogym Uk Ltd,CR033037,One Leisure Sawtry,Equipment,500
http://statistics.data.gov.uk/id/local-authority/12UE,Huntingdonshire District Council,03/12/2015,180451,941240466,5,4180.18,Swalec,CR407130,One Leisure Sawtry,Electricity,420
http://statistics.data.gov.uk/id/local-authority/12UE,Huntingdonshire District Council,17/12/2015,181249,941240466,5,3789.85,Swalec,CR407130,One Leisure Sawtry,Electricity,420
http://statistics.data.gov.uk/id/local-authority/12UE,Huntingdonshire District Council,03/12/2015,179516,2102259068,5,6.59,Booker Cash And Carry,CR027611,One Leisure Sawtry,Materials,550
http://statistics.data.gov.uk/id/local-authority/12UE,Huntingdonshire District Council,03/12/2015,179516,2102259068,5,10.99,Booker Cash And Carry,CR027611,One Leisure Sawtry,Materials,550
http://statistics.data.gov.uk/id/local-authority/12UE,Huntingdonshire District Council,03/12/2015,179516,2102259068,5,282.53,Booker Cash And Carry,CR027611,One Leisure Sawtry,Vending Materials,560
http://statistics.data.gov.uk/id/local-authority/12UE,Huntingdonshire District Council,17/12/2015,181259,12489088700,5,1827.96,E-On Energy,CR416430,One Leisure Sawtry,Gas,421
http://statistics.data.gov.uk/id/local-authority/12UE,Huntingdonshire District Council,03/12/2015,179172,16/2016,5,59.94,Apt Ltd,CR456018,One Leisure Sawtry,Software,206
http://statistics.data.gov.uk/id/local-authority/12UE,Huntingdonshire District Council,10/12/2015,180425,INV544789,5,411.6,Ecocleen Services Limited,CR406985,One Leisure Sawtry,Building Mtce,303
http://statistics.data.gov.uk/id/local-authority/12UE,Huntingdonshire District Council,03/12/2015,179751,SIN527184,5,250.48,Corporate Trends,CR415966,One Leisure Sawtry,Protective Clothing & Uniforms,163
http://statistics.data.gov.uk/id/local-authority/12UE,Huntingdonshire District Council,17/12/2015,181401,151,5,250,St Ives Quay News,CR422868,One Leisure St Ives,Advertising/Promoting Services,255
http://statistics.data.gov.uk/id/local-authority/12UE,Huntingdonshire District Council,03/12/2015,180474,671,5,1194,Flexerefrigeration Ltd,CR422336,One Leisure St Ives,Equipment,500
http://statistics.data.gov.uk/id/local-authority/12UE,Huntingdonshire District Council,10/12/2015,180678,1113,5,335.93,The Cambridge Chair Cover Company Ltd,CR455385,One Leisure St Ives,Equipment Hire,507
http://statistics.data.gov.uk/id/local-authority/12UE,Huntingdonshire District Council,23/12/2015,181626,1114,5,327.25,The Cambridge Chair Cover Company Ltd,CR455385,One Leisure St Ives,Equipment Hire,507
http://statistics.data.gov.uk/id/local-authority/12UE,Huntingdonshire District Council,23/12/2015,180423,1260,5,90,Talk Twenty 1,CR422876,One Leisure St Ives,Advertising/Promoting Services,255
http://statistics.data.gov.uk/id/local-authority/12UE,Huntingdonshire District Council,23/12/2015,181639,3680,5,3842.83,Enterprise Support Services Uk Ltd,CR422509,One Leisure St Ives,Building Cleaning,440
http://statistics.data.gov.uk/id/local-authority/12UE,Huntingdonshire District Council,23/12/2015,181639,3680,5,159.96,Enterprise Support Services Uk Ltd,CR422509,One Leisure St Ives,Building Cleaning,440
http://statistics.data.gov.uk/id/local-authority/12UE,Huntingdonshire District Council,17/12/2015,181190,8257,5,995,Starlite Roadshow,CR024127,One Leisure St Ives,Entertainments Inc Cable Tv,744
http://statistics.data.gov.uk/id/local-authority/12UE,Huntingdonshire District Council,17/12/2015,181190,8257,5,400,Starlite Roadshow,CR024127,One Leisure St Ives,Equipment Hire,507
http://statistics.data.gov.uk/id/local-authority/12UE,Huntingdonshire District Council,10/12/2015,180513,9482,5,85.2,Roger Wilson Electronics,CR028041,One Leisure St Ives,Building Mtce,303
http://statistics.data.gov.uk/id/local-authority/12UE,Huntingdonshire District Council,10/12/2015,180513,9482,5,242.88,Roger Wilson Electronics,CR028041,One Leisure St Ives,Building Mtce,303
http://statistics.data.gov.uk/id/local-authority/12UE,Huntingdonshire District Council,10/12/2015,180513,9482,5,52.85,Roger Wilson Electronics,CR028041,One Leisure St Ives,Materials,550
http://statistics.data.gov.uk/id/local-authority/12UE,Huntingdonshire District Council,23/12/2015,181121,13288,5,217.62,Jade Security Services Ltd,CR422256,One Leisure St Ives,Cash Collection,702
http://statistics.data.gov.uk/id/local-authority/12UE,Huntingdonshire District Council,10/12/2015,179555,13478,5,636,Garfield Builders Ltd,CR033216,One Leisure St Ives,Building Mtce,303
http://statistics.data.gov.uk/id/local-authority/12UE,Huntingdonshire District Council,23/12/2015,181420,14690,5,1768.8,Bigprinting,CR416383,One Leisure St Ives,Building Mtce,303
http://statistics.data.gov.uk/id/local-authority/12UE,Huntingdonshire District Council,23/12/2015,181421,15348,5,552,Bigprinting,CR416383,One Leisure St Ives,Building Mtce,303
http://statistics.data.gov.uk/id/local-authority/12UE,Huntingdonshire District Council,23/12/2015,181407,15585,5,181.68,Bigprinting,CR416383,One Leisure St Ives,Printing (External),220
http://statistics.data.gov.uk/id/local-authority/12UE,Huntingdonshire District Council,23/12/2015,181405,15586,5,462,Bigprinting,CR416383,One Leisure St Ives,Printing (External),220
http://statistics.data.gov.uk/id/local-authority/12UE,Huntingdonshire District Council,23/12/2015,181144,19334,5,780.08,Bh Doors & Engineering Ltd,CR455707,One Leisure St Ives,Building Mtce,303
http://statistics.data.gov.uk/id/local-authority/12UE,Huntingdonshire District Council,03/12/2015,179106,20423,5,300,Pineneedle Ltd,CR422164,One Leisure St Ives,Advertising/Promoting Services,255
http://statistics.data.gov.uk/id/local-authority/12UE,Huntingdonshire District Council,03/12/2015,180279,40564,5,300,Dings Entertainment,CR412228,One Leisure St Ives,Entertainments Inc Cable Tv,744
http://statistics.data.gov.uk/id/local-authority/12UE,Huntingdonshire District Council,17/12/2015,181142,40651,5,300,Dings Entertainment,CR412228,One Leisure St Ives,Entertainments Inc Cable Tv,744
http://statistics.data.gov.uk/id/local-authority/12UE,Huntingdonshire District Council,23/12/2015,180447,41551,5,960,Coffee Solutions,CR480375,One Leisure St Ives,Building Mtce,303
http://statistics.data.gov.uk/id/local-authority/12UE,Huntingdonshire District Council,23/12/2015,180450,41552,5,435,Coffee Solutions,CR480375,One Leisure St Ives,Equipment,500
http://statistics.data.gov.uk/id/local-authority/12UE,Huntingdonshire District Council,17/12/2015,179958,54447,5,369.63,Maskearaid Ind Supplies,CR033423,One Leisure St Ives,Cleaning Materials,443
http://statistics.data.gov.uk/id/local-authority/12UE,Huntingdonshire District Council,03/12/2015,180441,61841,5,273.54,Snackline Direct Ltd,CR478090,One Leisure St Ives,Vending Materials,560
http://statistics.data.gov.uk/id/local-authority/12UE,Huntingdonshire District Council,17/12/2015,180709,65919,5,10385.12,Haven Power Ltd,CR455940,One Leisure St Ives,Electricity,420
http://statistics.data.gov.uk/id/local-authority/12UE,Huntingdonshire District Council,17/12/2015,180714,65922,5,4090.02,Haven Power Ltd,CR455940,One Leisure St Ives,Electricity,420
http://statistics.data.gov.uk/id/local-authority/12UE,Huntingdonshire District Council,03/12/2015,178856,75831,5,4652.64,Gladstone Mrm,CR405717,One Leisure St Ives,Software,206
http://statistics.data.gov.uk/id/local-authority/12UE,Huntingdonshire District Council,23/12/2015,180681,78842,5,600,Jsa Leisure Ltd,CR40187,One Leisure St Ives,Plant & Equipment Maintenance,380
http://statistics.data.gov.uk/id/local-authority/12UE,Huntingdonshire District Council,17/12/2015,180706,78852,5,1257.66,Jsa Leisure Ltd,CR40187,One Leisure St Ives,Building Mtce,303
http://statistics.data.gov.uk/id/local-authority/12UE,Huntingdonshire District Council,23/12/2015,180707,78853,5,388.8,Jsa Leisure Ltd,CR40187,One Leisure St Ives,Building Mtce,303
http://statistics.data.gov.uk/id/local-authority/12UE,Huntingdonshire District Council,23/12/2015,180702,84630,5,449.4,Harry Dalby Engineering Ltd,CR455770,One Leisure St Ives,Building Mtce,303
http://statistics.data.gov.uk/id/local-authority/12UE,Huntingdonshire District Council,17/12/2015,180530,95335,5,691.58,Ramsey Paint Company Ltd,CR002265,One Leisure St Ives,Materials,550
http://statistics.data.gov.uk/id/local-authority/12UE,Huntingdonshire District Council,23/12/2015,180436,212537,5,562.8,Ken Booth & Co,CR000305,One Leisure St Ives,Materials,550
http://statistics.data.gov.uk/id/local-authority/12UE,Huntingdonshire District Council,17/12/2015,179938,263332,5,125.92,Westminster Foodservice,CR455156,One Leisure St Ives,Bar Provisions,558
http://statistics.data.gov.uk/id/local-authority/12UE,Huntingdonshire District Council,17/12/2015,179938,263332,5,152.13,Westminster Foodservice,CR455156,One Leisure St Ives,Catering Materials,559
http://statistics.data.gov.uk/id/local-authority/12UE,Huntingdonshire District Council,17/12/2015,179938,263332,5,16.68,Westminster Foodservice,CR455156,One Leisure St Ives,Confectionery,572
http://statistics.data.gov.uk/id/local-authority/12UE,Huntingdonshire District Council,10/12/2015,179939,264697,5,306.21,South Lincs Food Service,CR033415,One Leisure St Ives,Catering Materials,559
http://statistics.data.gov.uk/id/local-authority/12UE,Huntingdonshire District Council,10/12/2015,179939,264697,5,53.71,South Lincs Food Service,CR033415,One Leisure St Ives,Confectionery,572
http://statistics.data.gov.uk/id/local-authority/12UE,Huntingdonshire District Council,10/12/2015,180457,267156,5,279.52,South Lincs Food Service,CR033415,One Leisure St Ives,Catering Materials,559
http://statistics.data.gov.uk/id/local-authority/12UE,Huntingdonshire District Council,10/12/2015,180457,267156,5,46.56,South Lincs Food Service,CR033415,One Leisure St Ives,Confectionery,572
http://statistics.data.gov.uk/id/local-authority/12UE,Huntingdonshire District Council,10/12/2015,180457,267156,5,7.8,South Lincs Food Service,CR033415,One Leisure St Ives,Materials,550
http://statistics.data.gov.uk/id/local-authority/12UE,Huntingdonshire District Council,10/12/2015,177077,397087,5,277.89,South Lincs Food Service,CR033415,One Leisure St Ives,Catering Materials,559
http://statistics.data.gov.uk/id/local-authority/12UE,Huntingdonshire District Council,10/12/2015,177077,397087,5,45.57,South Lincs Food Service,CR033415,One Leisure St Ives,Confectionery,572
http://statistics.data.gov.uk/id/local-authority/12UE,Huntingdonshire District Council,23/12/2015,180518,521071,5,432,Metro Rod Ltd,CR479927,One Leisure St Ives,Building Mtce,303
http://statistics.data.gov.uk/id/local-authority/12UE,Huntingdonshire District Council,03/12/2015,179019,584226,5,1938.78,Lacons,CR422174,One Leisure St Ives,Bar Provisions,558
http://statistics.data.gov.uk/id/local-authority/12UE,Huntingdonshire District Council,03/12/2015,179019,584226,5,74.68,Lacons,CR422174,One Leisure St Ives,Gas Cylinders (Incl. Bars),567
http://statistics.data.gov.uk/id/local-authority/12UE,Huntingdonshire District Council,10/12/2015,179558,585287,5,295.58,Lacons,CR422174,One Leisure St Ives,Bar Provisions,558
http://statistics.data.gov.uk/id/local-authority/12UE,Huntingdonshire District Council,10/12/2015,180282,587255,5,1689.56,Lacons,CR422174,One Leisure St Ives,Bar Provisions,558
http://statistics.data.gov.uk/id/local-authority/12UE,Huntingdonshire District Council,10/12/2015,180444,587293,5,402.68,Lacons,CR422174,One Leisure St Ives,Bar Provisions,558
http://statistics.data.gov.uk/id/local-authority/12UE,Huntingdonshire District Council,17/12/2015,180275,737256,5,825.53,Ben Burgess & Company,CR453903,One Leisure St Ives,Vehicle Maintenance External,619
http://statistics.data.gov.uk/id/local-authority/12UE,Huntingdonshire District Council,23/12/2015,181211,15014306,5,8654.4,Technogym Uk Ltd,CR033037,One Leisure St Ives,Equipment,500
http://statistics.data.gov.uk/id/local-authority/12UE,Huntingdonshire District Council,03/12/2015,179029,55363568,5,300,Archant Herts & Cambs,CR415764,One Leisure St Ives,Advertising/Promoting Services,255
http://statistics.data.gov.uk/id/local-authority/12UE,Huntingdonshire District Council,17/12/2015,180016,55380580,5,270,Archant Herts & Cambs,CR415764,One Leisure St Ives,Advertising/Promoting Services,255
http://statistics.data.gov.uk/id/local-authority/12UE,Huntingdonshire District Council,23/12/2015,180296,55389199,5,354,Archant Herts & Cambs,CR415764,One Leisure St Ives,Advertising/Promoting Services,255
http://statistics.data.gov.uk/id/local-authority/12UE,Huntingdonshire District Council,03/12/2015,178815,92105212,5,1364.61,Speedo International Limited,CR41427,One Leisure St Ives,Materials For Resale,570
http://statistics.data.gov.uk/id/local-authority/12UE,Huntingdonshire District Council,10/12/2015,180526,991154657,5,1215.24,Abel Alarm Company Ltd,CR000201,One Leisure St Ives,Fire & Security,450
http://statistics.data.gov.uk/id/local-authority/12UE,Huntingdonshire District Council,17/12/2015,179934,1216786056,5,19.2,Orange Airtime,CR455799,One Leisure St Ives,Telephone &Mobile Phonecharges,240
http://statistics.data.gov.uk/id/local-authority/12UE,Huntingdonshire District Council,03/12/2015,178107,2102226816,5,1672.42,Booker Cash And Carry,CR027611,One Leisure St Ives,Bar Provisions,558
http://statistics.data.gov.uk/id/local-authority/12UE,Huntingdonshire District Council,03/12/2015,178107,2102226816,5,128.81,Booker Cash And Carry,CR027611,One Leisure St Ives,Catering Materials,559
http://statistics.data.gov.uk/id/local-authority/12UE,Huntingdonshire District Council,03/12/2015,178107,2102226816,5,112.07,Booker Cash And Carry,CR027611,One Leisure St Ives,Confectionery,572
http://statistics.data.gov.uk/id/local-authority/12UE,Huntingdonshire District Council,03/12/2015,178107,2102226816,5,3.59,Booker Cash And Carry,CR027611,One Leisure St Ives,Materials,550
http://statistics.data.gov.uk/id/local-authority/12UE,Huntingdonshire District Council,03/12/2015,178703,2102237421,5,898.39,Booker Cash And Carry,CR027611,One Leisure St Ives,Bar Provisions,558
http://statistics.data.gov.uk/id/local-authority/12UE,Huntingdonshire District Council,03/12/2015,178703,2102237421,5,180.1,Booker Cash And Carry,CR027611,One Leisure St Ives,Catering Materials,559
http://statistics.data.gov.uk/id/local-authority/12UE,Huntingdonshire District Council,03/12/2015,178703,2102237421,5,158.83,Booker Cash And Carry,CR027611,One Leisure St Ives,Materials,550
http://statistics.data.gov.uk/id/local-authority/12UE,Huntingdonshire District Council,03/12/2015,180431,2102248547,5,723.85,Booker Cash And Carry,CR027611,One Leisure St Ives,Bar Provisions,558
http://statistics.data.gov.uk/id/local-authority/12UE,Huntingdonshire District Council,03/12/2015,180431,2102248547,5,512.1,Booker Cash And Carry,CR027611,One Leisure St Ives,Catering Materials,559
http://statistics.data.gov.uk/id/local-authority/12UE,Huntingdonshire District Council,03/12/2015,180431,2102248547,5,46.87,Booker Cash And Carry,CR027611,One Leisure St Ives,Materials,550
http://statistics.data.gov.uk/id/local-authority/12UE,Huntingdonshire District Council,03/12/2015,179559,2102256979,5,353.92,Booker Cash And Carry,CR027611,One Leisure St Ives,Bar Provisions,558
http://statistics.data.gov.uk/id/local-authority/12UE,Huntingdonshire District Council,03/12/2015,179559,2102256979,5,15.88,Booker Cash And Carry,CR027611,One Leisure St Ives,Catering Materials,559
http://statistics.data.gov.uk/id/local-authority/12UE,Huntingdonshire District Council,03/12/2015,179559,2102256979,5,84.52,Booker Cash And Carry,CR027611,One Leisure St Ives,Materials,550
http://statistics.data.gov.uk/id/local-authority/12UE,Huntingdonshire District Council,03/12/2015,180437,2102257605,5,314.21,Booker Cash And Carry,CR027611,One Leisure St Ives,Catering Materials,559
http://statistics.data.gov.uk/id/local-authority/12UE,Huntingdonshire District Council,03/12/2015,179740,2102267822,5,969.96,Booker Cash And Carry,CR027611,One Leisure St Ives,Bar Provisions,558
http://statistics.data.gov.uk/id/local-authority/12UE,Huntingdonshire District Council,03/12/2015,179740,2102267822,5,355,Booker Cash And Carry,CR027611,One Leisure St Ives,Catering Materials,559
http://statistics.data.gov.uk/id/local-authority/12UE,Huntingdonshire District Council,03/12/2015,179740,2102267822,5,141.96,Booker Cash And Carry,CR027611,One Leisure St Ives,Confectionery,572
http://statistics.data.gov.uk/id/local-authority/12UE,Huntingdonshire District Council,03/12/2015,179740,2102267822,5,231.42,Booker Cash And Carry,CR027611,One Leisure St Ives,Materials,550
http://statistics.data.gov.uk/id/local-authority/12UE,Huntingdonshire District Council,17/12/2015,180096,2102279639,5,1163.1,Booker Cash And Carry,CR027611,One Leisure St Ives,Bar Provisions,558
http://statistics.data.gov.uk/id/local-authority/12UE,Huntingdonshire District Council,17/12/2015,180096,2102279639,5,62.55,Booker Cash And Carry,CR027611,One Leisure St Ives,Catering Materials,559
http://statistics.data.gov.uk/id/local-authority/12UE,Huntingdonshire District Council,17/12/2015,180096,2102279639,5,297.84,Booker Cash And Carry,CR027611,One Leisure St Ives,Materials,550
http://statistics.data.gov.uk/id/local-authority/12UE,Huntingdonshire District Council,23/12/2015,180704,2102289808,5,2937.76,Booker Cash And Carry,CR027611,One Leisure St Ives,Bar Provisions,558
http://statistics.data.gov.uk/id/local-authority/12UE,Huntingdonshire District Council,23/12/2015,180704,2102289808,5,193.28,Booker Cash And Carry,CR027611,One Leisure St Ives,Catering Materials,559
http://statistics.data.gov.uk/id/local-authority/12UE,Huntingdonshire District Council,23/12/2015,180704,2102289808,5,51.58,Booker Cash And Carry,CR027611,One Leisure St Ives,Materials,550
http://statistics.data.gov.uk/id/local-authority/12UE,Huntingdonshire District Council,23/12/2015,181232,2102299177,5,1063.51,Booker Cash And Carry,CR027611,One Leisure St Ives,Bar Provisions,558
http://statistics.data.gov.uk/id/local-authority/12UE,Huntingdonshire District Council,23/12/2015,181232,2102299177,5,427.46,Booker Cash And Carry,CR027611,One Leisure St Ives,Catering Materials,559
http://statistics.data.gov.uk/id/local-authority/12UE,Huntingdonshire District Council,23/12/2015,181232,2102299177,5,51.2,Booker Cash And Carry,CR027611,One Leisure St Ives,Confectionery,572
http://statistics.data.gov.uk/id/local-authority/12UE,Huntingdonshire District Council,23/12/2015,181232,2102299177,5,40.36,Booker Cash And Carry,CR027611,One Leisure St Ives,Materials,550
http://statistics.data.gov.uk/id/local-authority/12UE,Huntingdonshire District Council,23/12/2015,181219,7080528715,5,745.81,Honeywell Novar Systems,CR406826,One Leisure St Ives,Fire & Security,450
http://statistics.data.gov.uk/id/local-authority/12UE,Huntingdonshire District Council,17/12/2015,178838,9050876085,5,425.52,Royal Mail,CR027083,One Leisure St Ives,Postage,231
http://statistics.data.gov.uk/id/local-authority/12UE,Huntingdonshire District Council,17/12/2015,181261,12489089510,5,916.01,E-On Energy,CR416430,One Leisure St Ives,Gas,421
http://statistics.data.gov.uk/id/local-authority/12UE,Huntingdonshire District Council,17/12/2015,181263,12489090950,5,5889.6,E-On Energy,CR416430,One Leisure St Ives,Gas,421
http://statistics.data.gov.uk/id/local-authority/12UE,Huntingdonshire District Council,10/12/2015,180529,15/24,5,864,Jba Construction & Management Services,CR416716,One Leisure St Ives,Building Mtce,303
http://statistics.data.gov.uk/id/local-authority/12UE,Huntingdonshire District Council,23/12/2015,181220,15/27,5,288,Jba Construction & Management Services,CR416716,One Leisure St Ives,Building Mtce,303
http://statistics.data.gov.uk/id/local-authority/12UE,Huntingdonshire District Council,03/12/2015,179172,16/2016,5,59.94,Apt Ltd,CR456018,One Leisure St Ives,Software,206
http://statistics.data.gov.uk/id/local-authority/12UE,Huntingdonshire District Council,03/12/2015,179494,742878104/1115,5,9.6,Virgin Media Business,CR033120,One Leisure St Ives,I T Line Rental,248
http://statistics.data.gov.uk/id/local-authority/12UE,Huntingdonshire District Council,03/12/2015,179494,742878104/1115,5,0.11,Virgin Media Business,CR033120,One Leisure St Ives,Telephone &Mobile Phonecharges,240
http://statistics.data.gov.uk/id/local-authority/12UE,Huntingdonshire District Council,23/12/2015,181635,9085-B,5,405,The Outstanding Events Company,CR422073,One Leisure St Ives,Entertainments Inc Cable Tv,744
http://statistics.data.gov.uk/id/local-authority/12UE,Huntingdonshire District Council,23/12/2015,181412,9976O,5,302.4,Asp,CR455201,One Leisure St Ives,Building Mtce,303
http://statistics.data.gov.uk/id/local-authority/12UE,Huntingdonshire District Council,17/12/2015,181229,BOOGIE NIGHT,5,359.54,Starlite Roadshow,CR024127,One Leisure St Ives,Entertainments Inc Cable Tv,744
http://statistics.data.gov.uk/id/local-authority/12UE,Huntingdonshire District Council,17/12/2015,181143,H19661,5,268.8,Pearce Sound & Lighting Ltd,CR453763,One Leisure St Ives,Equipment Hire,507
http://statistics.data.gov.uk/id/local-authority/12UE,Huntingdonshire District Council,03/12/2015,179008,I130692,5,1047.66,Oakham Ales,CR422253,One Leisure St Ives,Bar Provisions,558
http://statistics.data.gov.uk/id/local-authority/12UE,Huntingdonshire District Council,03/12/2015,180283,I131940,5,2003.94,Oakham Ales,CR422253,One Leisure St Ives,Bar Provisions,558
http://statistics.data.gov.uk/id/local-authority/12UE,Huntingdonshire District Council,10/12/2015,180682,I132421,5,1013.76,Oakham Ales,CR422253,One Leisure St Ives,Bar Provisions,558
http://statistics.data.gov.uk/id/local-authority/12UE,Huntingdonshire District Council,17/12/2015,181130,I132912,5,1432.14,Oakham Ales,CR422253,One Leisure St Ives,Bar Provisions,558
http://statistics.data.gov.uk/id/local-authority/12UE,Huntingdonshire District Council,23/12/2015,181586,I133373,5,969.46,Oakham Ales,CR422253,One Leisure St Ives,Bar Provisions,558
http://statistics.data.gov.uk/id/local-authority/12UE,Huntingdonshire District Council,10/12/2015,180528,INV001472,5,1250,Lynx Bowling Services,CR455532,One Leisure St Ives,Equipment Maintenance,511
http://statistics.data.gov.uk/id/local-authority/12UE,Huntingdonshire District Council,10/12/2015,180528,INV001472,5,580.8,Lynx Bowling Services,CR455532,One Leisure St Ives,Plant & Equipment Maintenance,380
http://statistics.data.gov.uk/id/local-authority/12UE,Huntingdonshire District Council,23/12/2015,180536,INV008723,5,258.69,Escape Fitness,CR479121,One Leisure St Ives,Equipment,500
http://statistics.data.gov.uk/id/local-authority/12UE,Huntingdonshire District Council,10/12/2015,180761,INV029660,5,184.44,Slush Puppie Ltd,CR455958,One Leisure St Ives,Bar Provisions,558
http://statistics.data.gov.uk/id/local-authority/12UE,Huntingdonshire District Council,10/12/2015,180761,INV029660,5,115.62,Slush Puppie Ltd,CR455958,One Leisure St Ives,Materials,550
http://statistics.data.gov.uk/id/local-authority/12UE,Huntingdonshire District Council,17/12/2015,180005,INV031555,5,276.66,Slush Puppie Ltd,CR455958,One Leisure St Ives,Catering Materials,559
http://statistics.data.gov.uk/id/local-authority/12UE,Huntingdonshire District Council,17/12/2015,180005,INV031555,5,115.62,Slush Puppie Ltd,CR455958,One Leisure St Ives,Materials,550
http://statistics.data.gov.uk/id/local-authority/12UE,Huntingdonshire District Council,17/12/2015,180705,IOSINV007975,5,598,Institute Of Swimming Ltd,CR455603,One Leisure St Ives,Training,130
http://statistics.data.gov.uk/id/local-authority/12UE,Huntingdonshire District Council,23/12/2015,180742,ONELEISURECENTR,5,720,Lui The Plumber,CR422379,One Leisure St Ives,Building Mtce,303
http://statistics.data.gov.uk/id/local-authority/12UE,Huntingdonshire District Council,23/12/2015,180890,SBO1030226,5,743.62,Veolia Es Uk Ltd,CR478889,One Leisure St Ives,Waste Disposal,763
http://statistics.data.gov.uk/id/local-authority/12UE,Huntingdonshire District Council,03/12/2015,180053,SIN003800,5,792,Enterprise Support Services Uk Ltd,CR422509,One Leisure St Ives,Building Cleaning,440
http://statistics.data.gov.uk/id/local-authority/12UE,Huntingdonshire District Council,23/12/2015,180423,1260,5,90,Talk Twenty 1,CR422876,One Leisure St Neots,Advertising/Promoting Services,255
http://statistics.data.gov.uk/id/local-authority/12UE,Huntingdonshire District Council,23/12/2015,181639,3680,5,1307.12,Enterprise Support Services Uk Ltd,CR422509,One Leisure St Neots,Building Cleaning,440
http://statistics.data.gov.uk/id/local-authority/12UE,Huntingdonshire District Council,23/12/2015,181121,13288,5,435.24,Jade Security Services Ltd,CR422256,One Leisure St Neots,Cash Collection,702
http://statistics.data.gov.uk/id/local-authority/12UE,Huntingdonshire District Council,23/12/2015,181407,15585,5,181.68,Bigprinting,CR416383,One Leisure St Neots,Printing (External),220
http://statistics.data.gov.uk/id/local-authority/12UE,Huntingdonshire District Council,17/12/2015,180259,38639,5,716,Clanpress King'S Lynn Ltd,CR413516,One Leisure St Neots,Printing (External),220
http://statistics.data.gov.uk/id/local-authority/12UE,Huntingdonshire District Council,10/12/2015,179542,54396,5,500.22,Maskearaid Ind Supplies,CR033423,One Leisure St Neots,Cleaning Materials,443
http://statistics.data.gov.uk/id/local-authority/12UE,Huntingdonshire District Council,10/12/2015,179983,62601,5,482.17,Snackline Direct Ltd,CR478090,One Leisure St Neots,Vending Materials,560
http://statistics.data.gov.uk/id/local-authority/12UE,Huntingdonshire District Council,10/12/2015,180728,63095,5,482.17,Snackline Direct Ltd,CR478090,One Leisure St Neots,Vending Materials,560
http://statistics.data.gov.uk/id/local-authority/12UE,Huntingdonshire District Council,17/12/2015,180712,65914,5,9201.44,Haven Power Ltd,CR455940,One Leisure St Neots,Electricity,420
http://statistics.data.gov.uk/id/local-authority/12UE,Huntingdonshire District Council,03/12/2015,178856,75831,5,3489.48,Gladstone Mrm,CR405717,One Leisure St Neots,Software,206
http://statistics.data.gov.uk/id/local-authority/12UE,Huntingdonshire District Council,23/12/2015,180681,78842,5,660,Jsa Leisure Ltd,CR40187,One Leisure St Neots,Plant & Equipment Maintenance,380
http://statistics.data.gov.uk/id/local-authority/12UE,Huntingdonshire District Council,10/12/2015,179236,3073173,5,1060.8,First In Service Ltd,CR422285,One Leisure St Neots,Plant & Equipment Maintenance,380
http://statistics.data.gov.uk/id/local-authority/12UE,Huntingdonshire District Council,23/12/2015,180884,3073976,5,257.02,First In Service Ltd,CR422285,One Leisure St Neots,Plant & Equipment Maintenance,380
http://statistics.data.gov.uk/id/local-authority/12UE,Huntingdonshire District Council,23/12/2015,179537,5502616,5,1279.5,Chubb Fire And Security Ltd,CR478924,One Leisure St Neots,Fire & Security,450
http://statistics.data.gov.uk/id/local-authority/12UE,Huntingdonshire District Council,23/12/2015,181211,15014306,5,1454.4,Technogym Uk Ltd,CR033037,One Leisure St Neots,Equipment,500
http://statistics.data.gov.uk/id/local-authority/12UE,Huntingdonshire District Council,10/12/2015,179786,55371295,5,345.6,Archant Herts & Cambs,CR415764,One Leisure St Neots,Recruitment - Advertising,120
http://statistics.data.gov.uk/id/local-authority/12UE,Huntingdonshire District Council,03/12/2015,179859,123913345,5,1026.34,Anglian Water,CR000071,One Leisure St Neots,Water & Sewerage,432
http://statistics.data.gov.uk/id/local-authority/12UE,Huntingdonshire District Council,10/12/2015,179463,1121306466,5,408.22,Konica Minolta,CR478866,One Leisure St Neots,Equipment,500
http://statistics.data.gov.uk/id/local-authority/12UE,Huntingdonshire District Council,17/12/2015,179934,1216786056,5,9.6,Orange Airtime,CR455799,One Leisure St Neots,Telephone &Mobile Phonecharges,240
http://statistics.data.gov.uk/id/local-authority/12UE,Huntingdonshire District Council,17/12/2015,181258,12489088380,5,4493.5,E-On Energy,CR416430,One Leisure St Neots,Gas,421
http://statistics.data.gov.uk/id/local-authority/12UE,Huntingdonshire District Council,17/12/2015,181257,12489088540,5,487.13,E-On Energy,CR416430,One Leisure St Neots,Gas,421
http://statistics.data.gov.uk/id/local-authority/12UE,Huntingdonshire District Council,23/12/2015,181220,15/27,5,288,Jba Construction & Management Services,CR416716,One Leisure St Neots,Building Mtce,303
http://statistics.data.gov.uk/id/local-authority/12UE,Huntingdonshire District Council,03/12/2015,179172,16/2016,5,59.94,Apt Ltd,CR456018,One Leisure St Neots,Software,206
http://statistics.data.gov.uk/id/local-authority/12UE,Huntingdonshire District Council,23/12/2015,181574,INV#02697,5,1368,Nrm Plumbing & Heating,CR416722,One Leisure St Neots,Building Mtce,303
http://statistics.data.gov.uk/id/local-authority/12UE,Huntingdonshire District Council,23/12/2015,180893,SBO1030228,5,307.75,Veolia Es Uk Ltd,CR478889,One Leisure St Neots,Waste Disposal,763
http://statistics.data.gov.uk/id/local-authority/12UE,Huntingdonshire District Council,03/12/2015,179751,SIN527184,5,261.72,Corporate Trends,CR415966,One Leisure St Neots,Protective Clothing & Uniforms,163
http://statistics.data.gov.uk/id/local-authority/12UE,Huntingdonshire District Council,10/12/2015,180964,2257,5,900,Gilden Training,CR481057,Operations Mgt Units,Training,130
http://statistics.data.gov.uk/id/local-authority/12UE,Huntingdonshire District Council,23/12/2015,180963,2261,5,708,Gilden Training,CR481057,Operations Mgt Units,Training,130
http://statistics.data.gov.uk/id/local-authority/12UE,Huntingdonshire District Council,23/12/2015,180860,20408,5,175,Playsafety Ltd,CR479523,Operations Mgt Units,Training,130
http://statistics.data.gov.uk/id/local-authority/12UE,Huntingdonshire District Council,23/12/2015,180860,20408,5,1104,Playsafety Ltd,CR479523,Operations Mgt Units,Training,130
http://statistics.data.gov.uk/id/local-authority/12UE,Huntingdonshire District Council,17/12/2015,180951,163439,5,210.24,Felford Supplies,CR423088,Operations Mgt Units,Equipment,500
http://statistics.data.gov.uk/id/local-authority/12UE,Huntingdonshire District Council,17/12/2015,180951,163439,5,415.8,Felford Supplies,CR423088,Operations Mgt Units,Protective Clothing & Uniforms,163
http://statistics.data.gov.uk/id/local-authority/12UE,Huntingdonshire District Council,30/12/2015,182000,598334,5,345.84,Howsafe Ltd,CR000409,Operations Mgt Units,Protective Clothing & Uniforms,163
http://statistics.data.gov.uk/id/local-authority/12UE,Huntingdonshire District Council,17/12/2015,179934,1216786056,5,253.59,Orange Airtime,CR455799,Operations Mgt Units,Telephone &Mobile Phonecharges,240
http://statistics.data.gov.uk/id/local-authority/12UE,Huntingdonshire District Council,03/12/2015,180365,SIN0596262,5,377.09,Howsafe Ltd,CR000409,Operations Mgt Units,Protective Clothing & Uniforms,163
http://statistics.data.gov.uk/id/local-authority/12UE,Huntingdonshire District Council,03/12/2015,180488,SIN0597435,5,255.45,Howsafe Ltd,CR000409,Operations Mgt Units,Protective Clothing & Uniforms,163
http://statistics.data.gov.uk/id/local-authority/12UE,Huntingdonshire District Council,10/12/2015,180491,SIN0598062,5,540.6,Howsafe Ltd,CR000409,Operations Mgt Units,Protective Clothing & Uniforms,163
http://statistics.data.gov.uk/id/local-authority/12UE,Huntingdonshire District Council,10/12/2015,180493,SIN0598334,5,345.84,Howsafe Ltd,CR000409,Operations Mgt Units,Protective Clothing & Uniforms,163
http://statistics.data.gov.uk/id/local-authority/12UE,Huntingdonshire District Council,10/12/2015,180867,16504,5,1062,Soft Surfaces,CR415861,Parks & Open Spaces,Playground Equipment,360
http://statistics.data.gov.uk/id/local-authority/12UE,Huntingdonshire District Council,23/12/2015,181246,121573804,5,683.22,Swalec,CR407130,Parks & Open Spaces,Electricity,420
http://statistics.data.gov.uk/id/local-authority/12UE,Huntingdonshire District Council,03/12/2015,180352,130359813,5,488.61,Anglian Water,CR000071,Parks & Open Spaces,Water & Sewerage,432
http://statistics.data.gov.uk/id/local-authority/12UE,Huntingdonshire District Council,03/12/2015,179876,15-1800-MR,5,286.44,Gb Sport & Leisure Uk Ltd,CR482429,Parks & Open Spaces,Playground Equipment,360
http://statistics.data.gov.uk/id/local-authority/12UE,Huntingdonshire District Council,23/12/2015,181324,CHES 245,5,120,Hampton/Chesmetalwork,CR453817,Parks & Open Spaces,Playground Equipment,360
http://statistics.data.gov.uk/id/local-authority/12UE,Huntingdonshire District Council,23/12/2015,181324,CHES 245,5,1900,Hampton/Chesmetalwork,CR453817,Parks & Open Spaces,Playground Equipment,360
http://statistics.data.gov.uk/id/local-authority/12UE,Huntingdonshire District Council,23/12/2015,181324,CHES 245,5,3100,Hampton/Chesmetalwork,CR453817,Parks & Open Spaces,Playground Equipment,360
http://statistics.data.gov.uk/id/local-authority/12UE,Huntingdonshire District Council,23/12/2015,181639,3680,5,3296.9,Enterprise Support Services Uk Ltd,CR422509,Pathfinder House Site,Building Cleaning,440
http://statistics.data.gov.uk/id/local-authority/12UE,Huntingdonshire District Council,30/12/2015,181958,3955,5,566.26,Enterprise Support Services Uk Ltd,CR422509,Pathfinder House Site,Building Cleaning,440
http://statistics.data.gov.uk/id/local-authority/12UE,Huntingdonshire District Council,17/12/2015,179501,9475,5,319.2,Roger Wilson Electronics,CR028041,Pathfinder House Site,Building Mtce,303
http://statistics.data.gov.uk/id/local-authority/12UE,Huntingdonshire District Council,03/12/2015,178831,54281,5,750.79,Maskearaid Ind Supplies,CR033423,Pathfinder House Site,Building Mtce,303
http://statistics.data.gov.uk/id/local-authority/12UE,Huntingdonshire District Council,17/12/2015,180713,65912,5,10137.24,Haven Power Ltd,CR455940,Pathfinder House Site,Electricity,420
http://statistics.data.gov.uk/id/local-authority/12UE,Huntingdonshire District Council,23/12/2015,181199,698793,5,1283.52,Glasdon Uk Ltd,CR002827,Pathfinder House Site,Refuse Sacks,552
http://statistics.data.gov.uk/id/local-authority/12UE,Huntingdonshire District Council,23/12/2015,181193,29537426,5,5910,Kone Lifts Ltd,CR000483,Pathfinder House Site,Building Mtce,303
http://statistics.data.gov.uk/id/local-authority/12UE,Huntingdonshire District Council,17/12/2015,179934,1216786056,5,7.2,Orange Airtime,CR455799,Pathfinder House Site,Telephone &Mobile Phonecharges,240
http://statistics.data.gov.uk/id/local-authority/12UE,Huntingdonshire District Council,10/12/2015,178627,4220066205,5,454.02,Andrew Sykes  Hire Ltd,CR480059,Pathfinder House Site,Building Mtce,303
http://statistics.data.gov.uk/id/local-authority/12UE,Huntingdonshire District Council,17/12/2015,181267,13313569100,5,2042.22,E-On Energy,CR416430,Pathfinder House Site,Gas,421
http://statistics.data.gov.uk/id/local-authority/12UE,Huntingdonshire District Council,17/12/2015,181341,S04556720,5,46.36,Shell Uk Ltd,CR028192,Pest Control,Diesel,615
http://statistics.data.gov.uk/id/local-authority/12UE,Huntingdonshire District Council,23/12/2015,178647,10646310,5,225600,Cambridgeshire County Council,CR017440,Planning Capital,Contribution (Paid Out),810
http://statistics.data.gov.uk/id/local-authority/12UE,Huntingdonshire District Council,17/12/2015,179934,1216786056,5,105.12,Orange Airtime,CR455799,Planning M U'S,Telephone &Mobile Phonecharges,240
http://statistics.data.gov.uk/id/local-authority/12UE,Huntingdonshire District Council,23/12/2015,180673,9000833779,5,3060,Thomson Reuters,CR412314,Planning M U'S,Corporate Subscriptions,754
http://statistics.data.gov.uk/id/local-authority/12UE,Huntingdonshire District Council,23/12/2015,181146,INV0284039,5,733.94,Posturite Ltd,CR453845,Planning M U'S,Furniture,200
http://statistics.data.gov.uk/id/local-authority/12UE,Huntingdonshire District Council,23/12/2015,181139,9943690,5,1249.03,Snr Denton,CR453969,Project Contributions,Consultants,711
http://statistics.data.gov.uk/id/local-authority/12UE,Huntingdonshire District Council,17/12/2015,180356,10650205,5,4590,Cambridgeshire County Council,CR006678,Project Contributions,Contribution (Paid Out),810
http://statistics.data.gov.uk/id/local-authority/12UE,Huntingdonshire District Council,23/12/2015,180690,1111255263,5,3096.16,Deloitte Llp,CR400573,Project Contributions,Subcontractors,777
http://statistics.data.gov.uk/id/local-authority/12UE,Huntingdonshire District Council,17/12/2015,179934,1216786056,5,16.8,Orange Airtime,CR455799,Property Development And Mgt,Telephone &Mobile Phonecharges,240
http://statistics.data.gov.uk/id/local-authority/12UE,Huntingdonshire District Council,03/12/2015,179812,HDC040,5,2940,Cfl Estate Services,CR455208,Property Development And Mgt,Consultants,711
http://statistics.data.gov.uk/id/local-authority/12UE,Huntingdonshire District Council,17/12/2015,179934,1216786056,5,16.8,Orange Airtime,CR455799,Ramsey Neighbourhood,Telephone &Mobile Phonecharges,240
http://statistics.data.gov.uk/id/local-authority/12UE,Huntingdonshire District Council,10/12/2015,180887,22167,5,2213.26,John Henry & Sons Ta Wfl Enterprises Ltd,CR456001,Recycling,Vehicle Maintenance External,619
http://statistics.data.gov.uk/id/local-authority/12UE,Huntingdonshire District Council,17/12/2015,180843,22208,5,4308.89,M & N Vehicle Services,CR480661,Recycling,Vehicle Maintenance External,619
http://statistics.data.gov.uk/id/local-authority/12UE,Huntingdonshire District Council,17/12/2015,179874,52816,5,306,Garwood Europe Ltd,CR415210,Recycling,Vehicle Maintenance External,619
http://statistics.data.gov.uk/id/local-authority/12UE,Huntingdonshire District Council,10/12/2015,180910,81622,5,865.6,Bandvulc Truck Tyres,CR406810,Recycling,Tyres,630
http://statistics.data.gov.uk/id/local-authority/12UE,Huntingdonshire District Council,03/12/2015,179900,82526,5,385.2,Frank Ratcliffe & Son,CR007546,Recycling,Vehicle Maintenance External,619
http://statistics.data.gov.uk/id/local-authority/12UE,Huntingdonshire District Council,30/12/2015,181994,82799,5,594.01,Bandvulc Truck Tyres,CR406810,Recycling,Tyres,630
http://statistics.data.gov.uk/id/local-authority/12UE,Huntingdonshire District Council,03/12/2015,180359,176773,5,126,Barton Petroleum,CR409205,Recycling,Vehicle Oil & Lubricants,626
http://statistics.data.gov.uk/id/local-authority/12UE,Huntingdonshire District Council,03/12/2015,180375,468039,5,2835.1,Staffline Group,CR416827,Recycling,Hired Staff,100
http://statistics.data.gov.uk/id/local-authority/12UE,Huntingdonshire District Council,03/12/2015,180369,469179,5,2976.78,Staffline Group,CR416827,Recycling,Hired Staff,100
http://statistics.data.gov.uk/id/local-authority/12UE,Huntingdonshire District Council,03/12/2015,180393,472282,5,2944.26,Staffline Group,CR416827,Recycling,Hired Staff,100
http://statistics.data.gov.uk/id/local-authority/12UE,Huntingdonshire District Council,03/12/2015,180383,473753,5,2759.77,Staffline Group,CR416827,Recycling,Hired Staff,100
http://statistics.data.gov.uk/id/local-authority/12UE,Huntingdonshire District Council,03/12/2015,180403,475202,5,3338.34,Staffline Group,CR416827,Recycling,Hired Staff,100
http://statistics.data.gov.uk/id/local-authority/12UE,Huntingdonshire District Council,10/12/2015,180416,476515,5,2527.51,Staffline Group,CR416827,Recycling,Hired Staff,100
http://statistics.data.gov.uk/id/local-authority/12UE,Huntingdonshire District Council,23/12/2015,181757,477895,5,1454.65,Staffline Group,CR416827,Recycling,Hired Staff,100
http://statistics.data.gov.uk/id/local-authority/12UE,Huntingdonshire District Council,23/12/2015,181759,480030,5,2864.88,Staffline Group,CR416827,Recycling,Hired Staff,100
http://statistics.data.gov.uk/id/local-authority/12UE,Huntingdonshire District Council,03/12/2015,179910,96318761,5,385.3,Terberg Matec Uk Ltd,CR402183,Recycling,Vehicle Parts & Fittings,625
http://statistics.data.gov.uk/id/local-authority/12UE,Huntingdonshire District Council,17/12/2015,180885,96319540,5,947.53,Terberg Matec Uk Ltd,CR402183,Recycling,Vehicle Parts & Fittings,625
http://statistics.data.gov.uk/id/local-authority/12UE,Huntingdonshire District Council,10/12/2015,179830,261028I,5,181.55,A C Commercials,CR000141,Recycling,Vehicle Oil & Lubricants,626
http://statistics.data.gov.uk/id/local-authority/12UE,Huntingdonshire District Council,23/12/2015,180804,261215I,5,247.5,A C Commercials,CR000141,Recycling,Vehicle Oil & Lubricants,626
http://statistics.data.gov.uk/id/local-authority/12UE,Huntingdonshire District Council,10/12/2015,179831,261323I,5,8.48,A C Commercials,CR000141,Recycling,Vehicle Oil & Lubricants,626
http://statistics.data.gov.uk/id/local-authority/12UE,Huntingdonshire District Council,10/12/2015,179871,DE10911296,5,2112.25,Dennis Eagle Ltd,CR000200,Recycling,Vehicle Parts & Fittings,625
http://statistics.data.gov.uk/id/local-authority/12UE,Huntingdonshire District Council,17/12/2015,179872,DE10911629,5,563.99,Dennis Eagle Ltd,CR000200,Recycling,Vehicle Parts & Fittings,625
http://statistics.data.gov.uk/id/local-authority/12UE,Huntingdonshire District Council,23/12/2015,180939,DE10914244,5,559.06,Dennis Eagle Ltd,CR000200,Recycling,Vehicle Parts & Fittings,625
http://statistics.data.gov.uk/id/local-authority/12UE,Huntingdonshire District Council,23/12/2015,180961,SINV-089667,5,5328.96,Gelpack Excelsior Limited,CR002966,Recycling,Refuse Sacks,552
http://statistics.data.gov.uk/id/local-authority/12UE,Huntingdonshire District Council,03/12/2015,180525,ZPT109345,5,41.65,C F Parkinson Ltd,CR410442,Recycling,Vehicle Parts & Fittings,625
http://statistics.data.gov.uk/id/local-authority/12UE,Huntingdonshire District Council,17/12/2015,181123,102030,5,477.35,Brookes,CR422866,Restaurant,Catering,710
http://statistics.data.gov.uk/id/local-authority/12UE,Huntingdonshire District Council,03/12/2015,590245,8751,5,1150.8,Its Training Uk Ltd,CR403861,Revenue Services Mus,Training,130
http://statistics.data.gov.uk/id/local-authority/12UE,Huntingdonshire District Council,23/12/2015,180696,640180,5,247.2,Callcredit Ltd,CR455548,Revenue Services Mus,Enquiries,723
http://statistics.data.gov.uk/id/local-authority/12UE,Huntingdonshire District Council,17/12/2015,179934,1216786056,5,12,Orange Airtime,CR455799,Revenue Services Mus,Telephone &Mobile Phonecharges,240
http://statistics.data.gov.uk/id/local-authority/12UE,Huntingdonshire District Council,30/12/2015,591646,106 FUNDS,1,48479.79,Huntingdon Town Council,CR002471,S106 Agreements,Contribution (Paid Out),810
http://statistics.data.gov.uk/id/local-authority/12UE,Huntingdonshire District Council,03/12/2015,179153,14484,5,360,Ian'S Tyre & Exhaust Centre,CR405836,Street Cleaning,Tyres,630
http://statistics.data.gov.uk/id/local-authority/12UE,Huntingdonshire District Council,23/12/2015,180861,15927,5,304.18,Pristine Condition,CR482653,Street Cleaning,Training,130
http://statistics.data.gov.uk/id/local-authority/12UE,Huntingdonshire District Council,03/12/2015,180378,02-Nov-15,5,771.84,Staffline Group,CR416827,Street Cleaning,Hired Staff,100
http://statistics.data.gov.uk/id/local-authority/12UE,Huntingdonshire District Council,10/12/2015,180932,68303,5,2570.4,Dawsonrentals Sweepers,CR416605,Street Cleaning,Vehicle Hire,607
http://statistics.data.gov.uk/id/local-authority/12UE,Huntingdonshire District Council,10/12/2015,180910,81622,5,314.32,Bandvulc Truck Tyres,CR406810,Street Cleaning,Tyres,630
http://statistics.data.gov.uk/id/local-authority/12UE,Huntingdonshire District Council,30/12/2015,181994,82799,5,289.58,Bandvulc Truck Tyres,CR406810,Street Cleaning,Tyres,630
http://statistics.data.gov.uk/id/local-authority/12UE,Huntingdonshire District Council,23/12/2015,180903,117751,5,840,Addex Group,CR423099,Street Cleaning,Equipment Hire,507
http://statistics.data.gov.uk/id/local-authority/12UE,Huntingdonshire District Council,03/12/2015,180388,468043,5,512.64,Staffline Group,CR416827,Street Cleaning,Hired Staff,100
http://statistics.data.gov.uk/id/local-authority/12UE,Huntingdonshire District Council,03/12/2015,180387,468044,5,684.53,Staffline Group,CR416827,Street Cleaning,Hired Staff,100
http://statistics.data.gov.uk/id/local-authority/12UE,Huntingdonshire District Council,03/12/2015,180397,475206,5,1278.72,Staffline Group,CR416827,Street Cleaning,Hired Staff,100
http://statistics.data.gov.uk/id/local-authority/12UE,Huntingdonshire District Council,23/12/2015,180851,58368188,5,482.56,Marshall Motor Group,CR009641,Street Cleaning,Vehicle Parts & Fittings,625
http://statistics.data.gov.uk/id/local-authority/12UE,Huntingdonshire District Council,10/12/2015,180834,61326653,5,466.46,Johnston Engineering Ltd,CR029831,Street Cleaning,Vehicle Parts & Fittings,625
http://statistics.data.gov.uk/id/local-authority/12UE,Huntingdonshire District Council,10/12/2015,180833,61327540,5,551.76,Johnston Engineering Ltd,CR029831,Street Cleaning,Vehicle Parts & Fittings,625
http://statistics.data.gov.uk/id/local-authority/12UE,Huntingdonshire District Council,17/12/2015,180826,61330960,5,497.7,Johnston Engineering Ltd,CR029831,Street Cleaning,Vehicle Parts & Fittings,625
http://statistics.data.gov.uk/id/local-authority/12UE,Huntingdonshire District Council,23/12/2015,180831,61333671,5,695.15,Johnston Engineering Ltd,CR029831,Street Cleaning,Vehicle Parts & Fittings,625
http://statistics.data.gov.uk/id/local-authority/12UE,Huntingdonshire District Council,23/12/2015,180828,61334261,5,367.5,Johnston Engineering Ltd,CR029831,Street Cleaning,Vehicle Parts & Fittings,625
http://statistics.data.gov.uk/id/local-authority/12UE,Huntingdonshire District Council,17/12/2015,180824,65228780,5,654,Johnston Engineering Ltd,CR029831,Street Cleaning,Training,130
http://statistics.data.gov.uk/id/local-authority/12UE,Huntingdonshire District Council,23/12/2015,180829,65229112,5,1191.89,Johnston Engineering Ltd,CR029831,Street Cleaning,Vehicle Parts & Fittings,625
http://statistics.data.gov.uk/id/local-authority/12UE,Huntingdonshire District Council,17/12/2015,179934,1216786056,5,2.4,Orange Airtime,CR455799,Street Cleaning,Telephone &Mobile Phonecharges,240
http://statistics.data.gov.uk/id/local-authority/12UE,Huntingdonshire District Council,10/12/2015,179830,261028I,5,302.58,A C Commercials,CR000141,Street Cleaning,Vehicle Oil & Lubricants,626
http://statistics.data.gov.uk/id/local-authority/12UE,Huntingdonshire District Council,23/12/2015,180804,261215I,5,412.5,A C Commercials,CR000141,Street Cleaning,Vehicle Oil & Lubricants,626
http://statistics.data.gov.uk/id/local-authority/12UE,Huntingdonshire District Council,10/12/2015,179831,261323I,5,14.15,A C Commercials,CR000141,Street Cleaning,Vehicle Oil & Lubricants,626
http://statistics.data.gov.uk/id/local-authority/12UE,Huntingdonshire District Council,10/12/2015,180874,INO476518,5,938.88,Staffline Group,CR416827,Street Cleaning,Hired Staff,100
http://statistics.data.gov.uk/id/local-authority/12UE,Huntingdonshire District Council,10/12/2015,180879,IP0000532,5,7010.02,Staffline Group,CR416827,Street Cleaning,Hired Staff,100
http://statistics.data.gov.uk/id/local-authority/12UE,Huntingdonshire District Council,17/12/2015,181341,S04556720,5,31.37,Shell Uk Ltd,CR028192,Street Cleaning,Diesel,615
http://statistics.data.gov.uk/id/local-authority/12UE,Huntingdonshire District Council,03/12/2015,180525,ZPT109345,5,69.41,C F Parkinson Ltd,CR410442,Street Cleaning,Vehicle Parts & Fittings,625
http://statistics.data.gov.uk/id/local-authority/12UE,Huntingdonshire District Council,17/12/2015,181355,52851,5,465.6,Universeal Uk Ltd,CR423077,Trade Refuse,Equipment,500
http://statistics.data.gov.uk/id/local-authority/12UE,Huntingdonshire District Council,17/12/2015,179865,10649091,5,2363.89,Cambridgeshire County Council,CR006678,Trade Refuse,Waste Disposal,763
http://statistics.data.gov.uk/id/local-authority/12UE,Huntingdonshire District Council,23/12/2015,180961,SINV-089667,5,2508.48,Gelpack Excelsior Limited,CR002966,Trade Refuse,Car Park Machines,522
http://statistics.data.gov.uk/id/local-authority/12UE,Huntingdonshire District Council,17/12/2015,180881,16093,5,17896.8,Stuart Brown Ltd,CR479796,Vehicles & Plant Capital,Vehicles Purchased,600
http://statistics.data.gov.uk/id/local-authority/12UE,Huntingdonshire District Council,10/12/2015,179922,5877,5,2234.4,Lattenbury Services,CR406847,Watercourses,Sitework,359
